Workbook

Sheet Indice
B10: Evolução Estrutural das Explorações Agrícolas do Continente 1989 - 2016
M13: Acesso aos dados:
A30: Fonte
B32: Recenseamento Agrícola 1989, 1999, 2009
B33: Inquérito à Estrutura das Explorações Agrícolas 1993, 1995, 1997, 2003, 2005, 2007, 2013, 2016

Sheet 2016 (hidden)
A1: 2016 | C1: Continente | D1: EDM | E1: TM | F1: BL | G1: BI | H1: LVT | I1: ALE | J1: ALG
A2: EXPLORAÇÕES (nº) | C2: 235774 | D2: 39651 | E2: 56228 | F2: 39462 | G2: 29065 | H2: 31217 | I2: 28424 | J2: 11728
A3: Explorações por Classe de SAU (nº)
A4: > 0 a <5 ha | C4: 165331 | D4: 33094 | E4: 34351 | F4: 34558 | G4: 20264 | H4: 22478 | I4: 12428 | J4: 8157
A5: 5 a 50 ha | C5: 58861 | D5: 6146 | E5: 20836 | F5: 4319 | G5: 7444 | H5: 7365 | I5: 9442 | J5: 3310
A6: > 50 ha | C6: 10395 | D6: 197 | E6: 937 | F6: 133 | G6: 1348 | H6: 1149 | I6: 6388 | J6: 243
A7: SUPERFÍCIE TOTAL DAS EXPLORAÇÕES (ha) | C7: 4515890 | D7: 376225 | E7: 594141 | F7: 234215 | G7: 504569 | H7: 493467 | I7: 2142617 | J7: 170655
A8: Superfície agrícola utilizada | C8: 3513006 | D8: 198415 | E8: 454719 | F8: 122929 | G8: 356488 | H8: 378010 | I8: 1906874 | J8: 95570
A9: Matas e florestas sem culturas sob-coberto | C9: 822722 | D9: 162497 | E9: 119425 | F9: 105016 | G9: 110752 | H9: 96072 | I9: 180595 | J9: 48364
A10: Superfície agrícola não utilizada | C10: 96491 | D10: 6743 | E10: 11476 | F10: 2597 | G10: 30031 | H10: 5421 | I10: 15661 | J10: 24563
A11: Outras superfícies | C11: 83671 | D11: 8570 | E11: 8522 | F11: 3673 | G11: 7297 | H11: 13964 | I11: 39487 | J11: 2158
A12: SAU (ha) | C12: 3513006 | D12: 198415 | E12: 454719 | F12: 122929 | G12: 356488 | H12: 378010 | I12: 1906874 | J12: 95570
A13: SAU por Classe de SAU
A14: <5 ha | C14: 318159 | D14: 59634 | E14: 79476 | F14: 59084 | G14: 35827 | H14: 42368 | I14: 25978 | J14: 15791
A15: 5 a 50 ha | C15: 798835 | D15: 71077 | E15: 260182 | F15: 51131 | G15: 113036 | H15: 98359 | I15: 161649 | J15: 43402
A16: > 50 ha | C16: 2396012 | D16: 67705 | E16: 115061 | F16: 12713 | G16: 207626 | H16: 237284 | I16: 1719247 | J16: 36377
A17: Composição da SAU
A18: Terras aráveis | C18: 1019186 | D18: 72909 | E18: 99396 | F18: 72728 | G18: 79580 | H18: 157295 | I18: 510930 | J18: 26349
A19: Horta familiar | C19: 15690 | D19: 2559 | E19: 4466 | F19: 2747 | G19: 2519 | H19: 1580 | I19: 1238 | J19: 581
A20: Culturas permanentes | C20: 700353 | D20: 29177 | E20: 189595 | F20: 28607 | G20: 66727 | H20: 94932 | I20: 243467 | J20: 47847
A21: Pastagens permanentes | C21: 1777776 | D21: 93771 | E21: 161262 | F21: 18847 | G21: 207663 | H21: 124204 | I21: 1151238 | J21: 20792
A22: Cultura temporárias(1) (ha)
A23: Total | C23: 853885 | D23: 114173 | E23: 69794 | F23: 85038 | G23: 67826 | H23: 133793 | I23: 371845 | J23: 11416
A24: Cereais para grão | C24: 254957 | D24: 17187 | E24: 25639 | F24: 30616 | G24: 11297 | H24: 44934 | I24: 122365 | J24: 2918
A25: Leguminosas secas para grão | C25: 18043 | D25: 878 | E25: 861 | F25: 1615 | G25: 1452 | H25: 394 | I25: 12693 | J25: 150
A26: Prados temporários | C26: 91874 | D26: 9773 | E26: 7084 | F26: 3937 | G26: 6588 | H26: 5274 | I26: 56132 | J26: 3088
A27: Culturas forrageiras | C27: 406626 | D27: 82244 | E27: 32212 | F27: 43275 | G27: 47238 | H27: 42073 | I27: 155461 | J27: 4124
A28: Batata | C28: 10953 | D28: 1097 | E28: 3191 | F28: 1771 | G28: 784 | H28: 3784 | I28: 197 | J28: 129
A29: Beterraba sacarina
A30: Culturas industriais | C30: 19837 | E30: 50 | F30: 176 | G30: 30 | H30: 3542 | I30: 15996 | J30: 43
A31: Culturas hortícolas | C31: 47268 | D31: 2610 | E31: 446 | F31: 3408 | G31: 358 | H31: 32579 | I31: 7260 | J31: 609
A32: Flores e plantas ornamentais | C32: 1265 | D32: 218 | E32: 30 | F32: 61 | H32: 443 | I32: 409 | J32: 105
A33: Outras culturas temporárias | C33: 3063 | D33: 166 | E33: 283 | F33: 179 | G33: 80 | H33: 771 | I33: 1332 | J33: 251
A34: Pousio (ha) | C34: 251744 | D34: 3749 | E34: 34931 | F34: 8118 | G34: 18808 | H34: 28446 | I34: 142669 | J34: 15023
A35: CULTURAS PERMANENTES (ha)
A36: Frutos frescos (excepto citrinos) | C36: 46515 | D36: 2355 | E36: 9103 | F36: 1955 | G36: 7223 | H36: 19862 | I36: 3389 | J36: 2628
A37: Citrinos | C37: 17709 | D37: 599 | E37: 358 | F37: 234 | G37: 210 | H37: 863 | I37: 1715 | J37: 13731
A38: Frutos sub-tropicais | C38: 3525 | D38: 2259 | E38: 8 | F38: 755 | G38: 0 | H38: 13 | I38: 57 | J38: 433
A39: Frutos de casca rija | C39: 142523 | D39: 1628 | E39: 48793 | F39: 1601 | G39: 4697 | H39: 16637 | I39: 46766 | J39: 22402
A40: Olival | C40: 325755 | D40: 2128 | E40: 71761 | F40: 12142 | G40: 42366 | H40: 24631 | I40: 165237 | J40: 7489
A41: Vinha | C41: 160674 | D41: 19757 | E41: 59390 | F41: 11242 | G41: 12118 | H41: 32009 | I41: 25035 | J41: 1123
A42: Outras culturas permanentes | C42: 3650 | D42: 451 | E42: 182 | F42: 679 | G42: 113 | H42: 916 | I42: 1268 | J42: 42
A43: PRADOS E PASTAGENS PERMANENTES (2) (ha) | C43: 1828714 | D43: 94334 | E43: 161531 | F43: 19955 | G43: 214579 | H43: 127180 | I43: 1189454 | J43: 21682
A44: VOLUME DE TRABALHO (UTA) | C44: 295316 | D44: 58000 | E44: 71193 | F44: 46289 | G44: 26215 | H44: 38663 | I44: 41838 | J44: 13117
A45: Tipo de Mão-de-Obra
A46: Mão-de-obra agrícola familiar | C46: 212771 | D46: 47147 | E46: 56690 | F46: 40691 | G46: 21992 | H46: 21053 | I46: 17556 | J46: 7643
A47: Produtor | C47: 116335 | D47: 23512 | E47: 30358 | F47: 21096 | G47: 12345 | H47: 12786 | I47: 11715 | J47: 4523
A48: Mão-de-obra agrícola não familiar | C48: 82545 | D48: 10853 | E48: 14504 | F48: 5598 | G48: 4223 | H48: 17610 | I48: 24283 | J48: 5474
A49: Permanente | C49: 52488 | D49: 7263 | E49: 6819 | F49: 4093 | G49: 2305 | H49: 12335 | I49: 15901 | J49: 3773
A50: Eventual | C50: 26093 | D50: 3277 | E50: 6477 | F50: 1368 | G50: 1751 | H50: 4809 | I50: 6810 | J50: 1601
A51: POPULAÇÃO AGRÍCOLA (nº) | C51: 564670 | D51: 110068 | E51: 132411 | F51: 103862 | G51: 65889 | H51: 70309 | I51: 56795 | J51: 25336
A52: PRODUTORES AGRÍCOLAS (nº)
A53: Homem | C53: 147962 | D53: 21062 | E53: 34434 | F53: 24617 | G53: 18059 | H53: 23068 | I53: 18656 | J53: 8065
A54: Mulher | C54: 75543 | D54: 16326 | E54: 19642 | F54: 13846 | G54: 10239 | H54: 5889 | I54: 6306 | J54: 3295
A55: Nível etário do Produtor
A56: 15 a 44 anos | C56: 14914 | D56: 3239 | E56: 4309 | F56: 1850 | G56: 1064 | H56: 1810 | I56: 2118 | J56: 523
A57: 45 a 64 anos | C57: 83576 | D57: 15330 | E57: 21084 | F57: 14748 | G57: 9099 | H57: 11123 | I57: 8855 | J57: 3339
A58: 65 e mais anos | C58: 125015 | D58: 18819 | E58: 28684 | F58: 21866 | G58: 18135 | H58: 16023 | I58: 13989 | J58: 7499
A59: Nível de escolaridade do produtor
A60: Nenhum | C60: 36127 | D60: 7217 | E60: 8866 | F60: 5158 | G60: 5576 | H60: 3344 | I60: 3928 | J60: 2040
A61: Básico | C61: 158991 | D61: 25708 | E61: 38047 | F61: 30152 | G61: 19693 | H61: 21788 | I61: 15912 | J61: 7691
A62: Secundário/Pós-secundário | C62: 14755 | D62: 2091 | E62: 3644 | F62: 1816 | G62: 1511 | H62: 2300 | I62: 2501 | J62: 893
A63: Superior | C63: 13633 | D63: 2373 | E63: 3520 | F63: 1337 | G63: 1519 | H63: 1525 | I63: 2622 | J63: 736
A64: Formação agrícola do Produtor
A65: Exclusivamente prática | C65: 118615 | D65: 19370 | E65: 26992 | F65: 17287 | G65: 17580 | H65: 12677 | I65: 17107 | J65: 7603
A66: Curso F.Prof. relacionados c/ activ. agrícola | C66: 101819 | D66: 17576 | E66: 26597 | F66: 20989 | G66: 10453 | H66: 15761 | I66: 6837 | J66: 3606
A67: Completa (secundário ou superior agrícola) | C67: 3073 | D67: 443 | E67: 488 | F67: 187 | G67: 267 | H67: 519 | I67: 1018 | J67: 151
A68: (1) Inclui culturas sucessivas e sob coberto de permanentes

Sheet Continente (hidden)
A1: Continente | E1: 1989 | F1: 1993 | G1: 1995 | H1: 1997 | I1: 1999 | J1: 2003 | K1: 2005 | L1: 2007 | M1: 2009 | N1: 2013 | O1: 2016
A2: EXPLORAÇÕES (nº)
A3: Continente | E3: 550879 | F3: 446146 | G3: 412064 | H3: 381793 | I3: 382163 | J3: 330656 | K3: 297046 | L3: 251547 | M3: 278114 | N3: 240527 | O3: 235774
A4: Entre Douro e Minho | E4: 111505 | F4: 86967 | G4: 79916 | H4: 73048 | I4: 67546 | J4: 58757 | K4: 52696 | L4: 45848 | M4: 49037 | N4: 41601 | O4: 39651
A5: Trás-os-Montes | E5: 80551 | F5: 75678 | G5: 72248 | H5: 70098 | I5: 70006 | J5: 64963 | K5: 61649 | L5: 56339 | M5: 61804 | N5: 57224 | O5: 56228
A6: Beira Litoral | E6: 125307 | F6: 97459 | G6: 88547 | H6: 80217 | I6: 79806 | J6: 66060 | K6: 58823 | L6: 47542 | M6: 49424 | N6: 38356 | O6: 39462
A7: Beira Interior | E7: 60386 | F7: 49533 | G7: 45878 | H7: 42841 | I7: 48313 | J7: 40788 | K7: 35749 | L7: 30357 | M7: 33763 | N7: 30862 | O7: 29065
A8: Ribatejo e Oeste | E8: 99938 | F8: 78609 | G8: 71430 | H8: 64874 | I8: 61615 | J8: 52375 | K8: 43850 | L8: 33225 | M8: 39875 | N8: 31450 | O8: 31217
A9: Alentejo | E9: 47049 | F9: 37491 | G9: 36114 | H9: 34722 | I9: 35906 | J9: 31830 | K9: 29558 | L9: 26032 | M9: 31828 | N9: 29478 | O9: 28424
A10: Algarve | E10: 26143 | F10: 20409 | G10: 17931 | H10: 15993 | I10: 18971 | J10: 15883 | K10: 14721 | L10: 12204 | M10: 12383 | N10: 11556 | O10: 11728
A12: Explorações por Classe de SAU (nº)
A13: > 0 a <5 ha | E13: 446184 | F13: 343780 | G13: 311525 | H13: 286550 | I13: 296010 | J13: 249826 | K13: 218948 | L13: 179656 | M13: 207062 | N13: 170929 | O13: 165331
A14: 5 a 50 ha | E14: 91424 | F14: 91810 | G14: 89783 | H14: 84931 | I14: 73258 | J14: 69253 | K14: 66865 | L14: 61534 | M14: 59667 | N14: 58536 | O14: 58861
A15: > 50 ha | E15: 9050 | F15: 9287 | G15: 9601 | H15: 9340 | I15: 9612 | J15: 9393 | K15: 9971 | L15: 9485 | M15: 10047 | N15: 10249 | O15: 10395
A17: SUPERFÍCIE TOTAL DAS EXPLORAÇÕES (ha)
A18: Continente | E18: 5157213 | F18: 4999731 | G18: 4929405 | H18: 4800054 | I18: 5039569 | J18: 4719438 | K18: 4632024 | L18: 4272503 | M18: 4571531 | N18: 4492242 | O18: 4515890
A19: Superfície agrícola utilizada | E19: 3879579 | F19: 3821319 | G19: 3800379 | H19: 3700161 | I19: 3736140 | J19: 3578034 | K19: 3552347 | L19: 3357019 | M19: 3542305 | N19: 3517740 | O19: 3513006
A20: Matas e florestas sem culturas sob-coberto | E20: 965676 | F20: 867336 | G20: 803967 | H20: 801053 | I20: 997497 | J20: 878078 | K20: 838801 | L20: 707750 | M20: 837431 | N20: 800482 | O20: 822722
A21: Superfície agrícola não utilizada | E21: 243534 | F21: 215329 | G21: 218610 | H21: 208216 | I21: 201084 | J21: 180743 | K21: 158346 | L21: 134587 | M21: 125283 | N21: 99394 | O21: 96491
A22: Outras superfícies | E22: 68425 | F22: 95747 | G22: 106448 | H22: 90624 | I22: 104848 | J22: 82584 | K22: 82531 | L22: 73146 | M22: 66512 | N22: 74626 | O22: 83671
A24: SAU (ha)
A25: Continente | E25: 3879579 | F25: 3821319 | G25: 3800379 | H25: 3700161 | I25: 3736140 | J25: 3578034 | K25: 3552347 | L25: 3357019 | M25: 3542305 | N25: 3517740 | O25: 3513006
A26: Entre Douro e Minho | E26: 289624 | F26: 257684 | G26: 239465 | H26: 243450 | I26: 215675 | J26: 233702 | K26: 232260 | L26: 220371 | M26: 211154 | N26: 214554 | O26: 198415
A27: Trás-os-Montes | E27: 489133 | F27: 493229 | G27: 495965 | H27: 462230 | I27: 457881 | J27: 467158 | K27: 473530 | L27: 474617 | M27: 432873 | N27: 432056 | O27: 454719
A28: Beira Litoral | E28: 231458 | F28: 220532 | G28: 205702 | H28: 179896 | I28: 169779 | J28: 154781 | K28: 151949 | L28: 135986 | M28: 125436 | N28: 117387 | O28: 122929
A29: Beira Interior | E29: 433947 | F29: 443745 | G29: 441138 | H29: 435052 | I29: 418977 | J29: 390252 | K29: 384005 | L29: 352257 | M29: 337031 | N29: 341976 | O29: 356488
A30: Ribatejo e Oeste | E30: 456544 | F30: 498887 | G30: 483831 | H30: 494427 | I30: 447853 | J30: 381558 | K30: 412093 | L30: 349237 | M30: 391006 | N30: 370390 | O30: 378010
A31: Alentejo | E31: 1842094 | F31: 1766678 | G31: 1800535 | H31: 1757360 | I31: 1924043 | J31: 1836215 | K31: 1792285 | L31: 1721795 | M31: 1956508 | N31: 1949142 | O31: 1906874
A32: Algarve | E32: 136779 | F32: 140565 | G32: 133743 | H32: 127745 | I32: 101932 | J32: 114368 | K32: 106225 | L32: 102756 | M32: 88297 | N32: 92234 | O32: 95570
A34: SAU por Classe de SAU
A35: <5 ha | E35: 731458 | F35: 625118 | G35: 574760 | H35: 527529 | I35: 513791 | J35: 463738 | K35: 401651 | L35: 335945 | M35: 382341 | N35: 325926 | O35: 318159
A36: 5 a 50 ha | E36: 1090803 | F36: 1133878 | G36: 1126281 | H36: 1070249 | I36: 928258 | J36: 891107 | K36: 860460 | L36: 805855 | M36: 777505 | N36: 797420 | O36: 798835
A37: > 50 ha | E37: 2057316 | F37: 2062323 | G37: 2099337 | H37: 2102382 | I37: 2294091 | J37: 2223188 | K37: 2290236 | L37: 2215219 | M37: 2382459 | N37: 2394395 | O37: 2396012
A39: Composição da SAU
A40: Terras aráveis | E40: 2330327 | F40: 2258395 | G40: 2111584 | H40: 2082578 | I40: 1725887 | J40: 1513900 | K40: 1228939 | L40: 1066583 | M40: 1158805 | N40: 1081311 | O40: 1019186
A41: Horta familiar | E41: 31765 | F41: 29826 | G41: 27176 | H41: 25574 | I41: 20965 | J41: 19274 | K41: 20712 | L41: 17830 | M41: 18991 | N41: 14473 | O41: 15690
A42: Culturas permanentes | E42: 780966 | F42: 748594 | G42: 739153 | H42: 700068 | I42: 705232 | J42: 676598 | K42: 643520 | L42: 592393 | M42: 686221 | N42: 704302 | O42: 700353
A43: Pastagens permanentes | E43: 736521 | F43: 784504 | G43: 922465 | H43: 891940 | I43: 1284056 | J43: 1368262 | K43: 1659175 | L43: 1680214 | M43: 1678288 | N43: 1717653 | O43: 1777776
A45: Cultura temporárias(1) (ha)
A46: Total | E46: 1869929 | F46: 1667685 | G46: 1600085 | H46: 1483750 | I46: 1378415 | J46: 1177310 | K46: 992324 | L46: 859525 | M46: 923537 | N46: 840993 | O46: 853885
A47: Cereais para grão | E47: 896507 | F47: 702538 | G47: 675457 | H47: 649423 | I47: 601003 | J47: 479372 | K47: 383912 | L47: 303307 | M47: 345556 | N47: 305390 | O47: 254957
A48: Leguminosas secas para grão | E48: 80711 | F48: 41902 | G48: 38484 | H48: 28508 | I48: 25246 | J48: 21684 | K48: 13858 | L48: 15467 | M48: 13152 | N48: 9257 | O48: 18043
A49: Prados temporários | E49: 73865 | F49: 47210 | G49: 45348 | H49: 43112 | I49: 37246 | J49: 45280 | K49: 49219 | L49: 64718 | M49: 31652 | N49: 35532 | O49: 91874
A50: Culturas forrageiras | E50: 565460 | F50: 641601 | G50: 623571 | H50: 589063 | I50: 528049 | J50: 487696 | K50: 466300 | L50: 389993 | M50: 442320 | N50: 414201 | O50: 406626
A51: Batata | E51: 103652 | F51: 81496 | G51: 77462 | H51: 55454 | I51: 47313 | J51: 36561 | K51: 24356 | L51: 20685 | M51: 17331 | N51: 11879 | O51: 10953
A52: Beterraba sacarina | E52: 39 | F52: 0 | G52: 0 | H52: 0 | I52: 7551 | J52: 5115 | K52: 7012 | L52: 2108 | M52: 0 | N52: 0 | O52: 0
A53: Culturas industriais | E53: 63960 | F53: 83433 | G53: 76965 | H53: 57082 | I53: 74400 | J53: 50964 | K53: 8880 | L53: 17473 | M53: 24764 | N53: 19007 | O53: 19837
A54: Culturas hortícolas | E54: 61709 | F54: 51305 | G54: 54492 | H54: 50161 | I54: 49708 | J54: 42286 | K54: 36000 | L54: 37519 | M54: 46367 | N54: 41205 | O54: 47268
A55: Flores e plantas ornamentais | E55: 633 | F55: 841 | G55: 813 | H55: 1077 | I55: 1004 | J55: 1195 | K55: 1375 | L55: 1614 | M55: 1525 | N55: 2588 | O55: 1265
A56: Outras culturas temporárias | E56: 23393 | F56: 17358 | G56: 7491 | H56: 9870 | I56: 6889 | J56: 7157 | K56: 1413 | L56: 6641 | M56: 870 | N56: 1934 | O56: 3063
A58: Pousio (ha) | E58: 830303 | F58: 921836 | G58: 809120 | H58: 858969 | I58: 562646 | J58: 517973 | K58: 373654 | L58: 325044 | M58: 341465 | N58: 333031 | O58: 251744
A61: CULTURAS PERMANENTES (ha)
A62: Frutos frescos (excepto citrinos) | E62: 75715 | F62: 76218 | G62: 70493 | H62: 62439 | I62: 52342 | J62: 46465 | K62: 40230 | L62: 36800 | M62: 39746 | N62: 42667 | O62: 46515
A63: Citrinos | E63: 25598 | F63: 25089 | G63: 23890 | H63: 23557 | I63: 22428 | J63: 19802 | K63: 19101 | L63: 18083 | M63: 16389 | N63: 17424 | O63: 17709
A64: Frutos sub-tropicais | E64: 1042 | F64: 1297 | G64: 1122 | H64: 1094 | I64: 1197 | J64: 1038 | K64: 1390 | L64: 1469 | M64: 1764 | N64: 2412 | O64: 3525
A65: Frutos de casca rija | E65: 73738 | F65: 69964 | G65: 71345 | H65: 74698 | I65: 80281 | J65: 72820 | K65: 70951 | L65: 68877 | M65: 114980 | N65: 139750 | O65: 142523
A66: Olival | E66: 340514 | F66: 321675 | G66: 330337 | H66: 308731 | I66: 335028 | J66: 324061 | K66: 317046 | L66: 292162 | M66: 335841 | N66: 340284 | O66: 325755
A67: Vinha | E67: 262025 | F67: 252015 | G67: 239722 | H67: 227375 | I67: 211821 | J67: 210314 | K67: 192846 | L67: 172765 | M67: 175773 | N67: 160424 | O67: 160674
A68: Outras culturas permanentes | E68: 2334 | F68: 2337 | G68: 2244 | H68: 2173 | I68: 2135 | J68: 2099 | K68: 1955 | L68: 2236 | M68: 1728 | N68: 1342 | O68: 3650
A70: PRADOS E PASTAGENS PERMANENTES (2) (ha) | E70: 754825 | F70: 808586 | G70: 950879 | H70: 919058 | I70: 1331033 | J70: 1419417 | K70: 1706263 | L70: 1723221 | M70: 1721587 | N70: 1773304 | O70: 1828714
A71: (1) Inclui culturas sucessivas e sob coberto de permanentes | B71: (1) Inclui culturas sucessivas e sob coberto de permanentes | C71: (1) Inclui culturas sucessivas e sob coberto de permanentes | D71: (1) Inclui culturas sucessivas e sob coberto de permanentes
A72: (2) inclui pastagens sob coberto de permanentes | B72: (2) inclui pastagens sob coberto de permanentes | C72: (2) inclui pastagens sob coberto de permanentes | D72: (2) inclui pastagens sob coberto de permanentes
A74: Sueprfície irrigável | E74: 1989 | F74: 1993 | G74: 1995 | H74: 1997 | I74: 1999 | J74: 2003 | K74: 2005 | L74: 2007 | M74: 2009 | N74: 2013 | O74: 2016
A75: Continente | E75: 871590 | F75: 826628 | G75: 789727 | H75: 791355 | I75: 787236 | K75: 613209 | L75: 580164 | M75: 536127 | N75: 547119 | O75: 543745
A76: Entre Douro e Minho | E76: 225517 | F76: 206876 | G76: 189320 | H76: 186069 | I76: 148305 | K76: 118667 | L76: 115633 | M76: 94829 | N76: 106476 | O76: 90938
A77: Trás-os-Montes | E77: 99854 | F77: 115563 | G77: 113943 | H77: 112582 | I77: 93101 | K77: 67215 | L77: 53153 | M77: 46666 | N77: 46675 | O77: 43953
A78: Beira Litoral | E78: 143821 | F78: 137292 | G78: 121984 | H78: 108008 | I78: 104609 | K78: 82996 | L78: 76595 | M78: 61116 | N78: 57133 | O78: 56385
A79: Beira Interior | E79: 112734 | F79: 95693 | G79: 84986 | H79: 88021 | I79: 92717 | K79: 69918 | L79: 61928 | M79: 49580 | N79: 38008 | O79: 45571
A80: Ribatejo e Oeste | E80: 144692 | F80: 143313 | G80: 145815 | H80: 146604 | I80: 154509 | K80: 109076 | L80: 116336 | M80: 112539 | N80: 111985 | O80: 114330
A81: Alentejo | E81: 110753 | F81: 93551 | G81: 99870 | H81: 115652 | I81: 163983 | K81: 140376 | L81: 136856 | M81: 155123 | N81: 169573 | O81: 175410
A82: Algarve | E82: 34218 | F82: 34340 | G82: 33809 | H82: 34419 | I82: 30012 | K82: 24962 | L82: 19663 | M82: 16274 | N82: 17269 | O82: 17158
E84: 1989 | F84: 1993 | G84: 1995 | H84: 1997 | I84: 1999 | J84: 2003 | K84: 2005 | L84: 2007 | M84: 2009 | N84: 2013 | O84: 2016
A85: VOLUME DE TRABALHO (UTA)
A86: Continente | E86: 810005 | F86: 576661 | G86: 551197 | H86: 492999 | I86: 497537 | J86: 431521 | K86: 376370 | L86: 319369 | M86: 341502 | N86: 304677 | O86: 295316
A87: Entre Douro e Minho | E87: 218450 | F87: 153824 | G87: 150023 | H87: 127545 | I87: 122487 | J87: 103124 | K87: 88050 | L87: 74273 | M87: 78758 | N87: 68404 | O87: 58000
A88: Trás-os-Montes | E88: 99162 | F88: 81023 | G88: 81412 | H88: 73226 | I88: 81566 | J88: 77400 | K88: 67260 | L88: 65072 | M88: 69330 | N88: 68998 | O88: 71193
A89: Beira Litoral | E89: 188075 | F89: 127288 | G89: 121948 | H89: 105164 | I89: 107553 | J89: 88993 | K89: 79738 | L89: 59518 | M89: 65502 | N89: 48669 | O89: 46289
A90: Beira Interior | E90: 85447 | F90: 52671 | G90: 47625 | H90: 46443 | I90: 49193 | J90: 44165 | K90: 42588 | L90: 33624 | M90: 33552 | N90: 30355 | O90: 26215
A91: Ribatejo e Oeste | E91: 126898 | F91: 93835 | G91: 89504 | H91: 83768 | I91: 75630 | J91: 63629 | K91: 50047 | L91: 42447 | M91: 47269 | N91: 40832 | O91: 38663
A92: Alentejo | E92: 61913 | F92: 48043 | G92: 43524 | H92: 42942 | I92: 44162 | J92: 40862 | K92: 35491 | L92: 32918 | M92: 35659 | N92: 35617 | O92: 41838
A93: Algarve | E93: 30061 | F93: 19976 | G93: 17161 | H93: 13911 | I93: 16946 | J93: 13348 | K93: 13197 | L93: 11515 | M93: 11432 | N93: 11801 | O93: 13117
A95: Tipo de Mão-de-Obra
A96: Mão-de-obra agrícola familiar | E96: 687485 | F96: 484712 | G96: 460220 | H96: 406351 | I96: 408224 | J96: 352376 | K96: 309759 | L96: 260110 | M96: 272783 | N96: 230012 | O96: 212771
A97: Produtor | E97: 311206 | F97: 231524 | G97: 221960 | H97: 200648 | I97: 206241 | J97: 180870 | K97: 163899 | L97: 138618 | M97: 147342 | N97: 123072 | O97: 116335
A98: Mão-de-obra agrícola não familiar | E98: 122520 | F98: 91948 | G98: 90977 | H98: 86647 | I98: 89313 | J98: 79145 | K98: 66611 | L98: 59258 | M98: 68718 | N98: 74664 | O98: 82545
A99: Permanente | E99: 58932 | F99: 46524 | G99: 44232 | H99: 41976 | I99: 43962 | J99: 40758 | K99: 38402 | L99: 35820 | M99: 38960 | N99: 46010 | O99: 52488
A100: Eventual | E100: 60565 | F100: 43112 | G100: 44590 | H100: 42655 | I100: 42525 | J100: 35967 | K100: 26351 | L100: 21677 | M100: 26000 | N100: 23795 | O100: 26093
A102: POPULAÇÃO AGRÍCOLA (nº)
A103: Continente | E103: 1799736 | F103: 1408613 | G103: 1261088 | H103: 1133401 | I103: 1123418 | J103: 935316 | K103: 787102 | L103: 656296 | M103: 709928 | N103: 604926 | O103: 564670
A104: Entre Douro e Minho | E104: 466783 | F104: 345726 | G104: 306268 | H104: 274338 | I104: 248443 | J104: 203845 | K104: 175226 | L104: 145511 | M104: 150588 | N104: 124339 | O104: 110068
A105: Trás-os-Montes | E105: 255688 | F105: 227653 | G105: 212261 | H105: 198007 | I105: 196960 | J105: 174969 | K105: 155729 | L105: 138630 | M105: 151529 | N105: 138731 | O105: 132411
A106: Beira Litoral | E106: 426328 | F106: 325453 | G106: 286032 | H106: 251190 | I106: 246329 | J106: 197024 | K106: 168002 | L106: 133515 | M106: 134174 | N106: 106486 | O106: 103862
A107: Beira Interior | E107: 163719 | F107: 129743 | G107: 118858 | H107: 109048 | I107: 121920 | J107: 101031 | K107: 83230 | L107: 68638 | M107: 78470 | N107: 73147 | O107: 65889
A108: Ribatejo e Oeste | E108: 295495 | F108: 229219 | G108: 202173 | H108: 176355 | I108: 170116 | J108: 140110 | K108: 106022 | L108: 84673 | M108: 96111 | N108: 76290 | O108: 70309
A109: Alentejo | E109: 121804 | F109: 95794 | G109: 88222 | H109: 83601 | I109: 91678 | J109: 79884 | K109: 65591 | L109: 57425 | M109: 69849 | N109: 61473 | O109: 56795
A110: Algarve | E110: 69919 | F110: 55025 | G110: 47274 | H110: 40861 | I110: 47972 | J110: 38453 | K110: 33302 | L110: 27904 | M110: 29207 | N110: 24460 | O110: 25336
A112: PRODUTORES AGRÍCOLAS (nº)
A113: Homem | E113: 462535 | F113: 368061 | G113: 335627 | H113: 306245 | I113: 289291 | J113: 248858 | K113: 216600 | L113: 180885 | M113: 186194 | N113: 156995 | O113: 147962
A114: Mulher | E114: 83534 | F114: 73350 | G114: 71413 | H114: 70052 | I114: 86647 | J114: 75665 | K114: 73896 | L114: 64395 | M114: 84313 | N114: 72973 | O114: 75543
A116: Nível etário do Produtor
A117: 15 a 44 anos | E117: 107122 | F117: 72074 | G117: 62146 | H117: 51852 | I117: 55538 | J117: 35871 | K117: 29417 | L117: 21858 | M117: 24403 | N117: 17842 | O117: 14914 | P117: =+O117/(SUM($O$117:$O$119))*100 -> 6.67278137
A118: 45 a 64 anos | E118: 282161 | F118: 222105 | G118: 201020 | H118: 181582 | I118: 176575 | J118: 134653 | K118: 120906 | L118: 102461 | M118: 112932 | N118: 88447 | O118: 83576 | P118: =+O118/(SUM($O$117:$O$119))*100 -> 37.3933469
A119: 65 e mais anos | E119: 156786 | F119: 147232 | G119: 143874 | H119: 142863 | I119: 143825 | J119: 154000 | K119: 140172 | L119: 120960 | M119: 133172 | N119: 123680 | O119: 125015 | P119: =+O119/(SUM($O$117:$O$119))*100 -> 55.93387173
A121: Nível de escolaridade do produtor
A122: Nenhum | E122: 255187 | F122: 190085 | G122: 165348 | H122: 146863 | I122: 129360 | J122: 105666 | K122: 84731 | L122: 61900 | M122: 60040 | N122: 43102 | O122: 36127 | P122: =+N122/(SUM($N$122:$N$125))*100 -> 18.74252617 | Q122: =+O122/(SUM($O$122:$O$125))*100 -> 16.16377189
A123: Básico | E123: 268772 | F123: 231253 | G123: 228016 | H123: 215583 | I123: 228474 | J123: 201224 | K123: 188739 | L123: 168350 | M123: 186768 | N123: 159711 | O123: 158991 | P123: =+N123/(SUM($N$122:$N$125))*100 -> 69.44892572 | Q123: =+O123/(SUM($O$122:$O$125))*100 -> 71.13500309
A124: Secundário/Pós-secundário | E124: 16041 | F124: 13567 | G124: 6143 | H124: 6635 | I124: 8230 | J124: 7980 | K124: 7338 | L124: 6476 | M124: 11361 | N124: 13784 | O124: 14755 | P124: 5.993851345 | Q124: =+O124/(SUM($O$122:$O$125))*100 -> 6.601612485 | R124: =+Q124+Q125 -> 12.70122502
A125: Superior | E125: 6069 | F125: 6507 | G125: 7533 | H125: 7216 | I125: 9874 | J125: 9653 | K125: 9687 | L125: 8554 | M125: 12338 | N125: 13372 | O125: 13633 | P125: 5.814696763 | Q125: =+O125/(SUM($O$122:$O$125))*100 -> 6.099612538
A127: Formação agrícola do Produtor
A128: Exclusivamente prática | E128: n.d. | F128: 429831 | G128: 394406 | H128: 360809 | I128: 353898 | J128: 295947 | K128: 257273 | L128: 213773 | M128: 240285 | N128: 194177 | O128: 118615 | P128: =+N128/(SUM($N$128:$N$130))*100 -> 84.43616314 | Q128: =+O128/(SUM($O$128:$O$130))*100 -> 53.06992622
A129: Curso F.Prof. relacionados c/ activ. agrícola | E129: n.d. | F129: 10069 | G129: 11031 | H129: 13838 | I129: 19273 | J129: 25820 | K129: 30494 | L129: 29272 | M129: 27400 | N129: 32515 | O129: 101819 | P129: =+N129/(SUM($N$128:$N$130))*100 -> 14.13886219 | Q129: =+O129/(SUM($O$128:$O$130))*100 -> 45.55517277
A130: Completa (secundário ou superior agrícola) | E130: n.d. | F130: 1511 | G130: 1603 | H130: 1650 | I130: 2767 | J130: 2756 | K130: 2729 | L130: 2234 | M130: 2822 | N130: 3277 | O130: 3073 | P130: =+N130/(SUM($N$128:$N$130))*100 -> 1.42497467 | Q130: =+O130/(SUM($O$128:$O$130))*100 -> 1.37490101
A131: (1) Inclui culturas sucessivas e sob coberto de permanentes
A132: (2) inclui pastagens sob coberto de permanentes

Sheet 1989 (hidden)
A1: 1989 | C1: Continente | D1: EDM | E1: TM | F1: BL | G1: BI | H1: LVT | I1: ALE | J1: ALG
A2: EXPLORAÇÕES (nº) | C2: 550879 | D2: 111505 | E2: 80551 | F2: 125307 | G2: 60386 | H2: 99938 | I2: 47049 | J2: 26143
A3: Explorações por Classe de SAU (nº)
A4: > 0 a <5 ha | C4: 446184 | D4: 101131 | E4: 52952 | F4: 118763 | G4: 45225 | H4: 83508 | I4: 24909 | J4: 19696
A5: 5 a 50 ha | C5: 91424 | D5: 9925 | E5: 26845 | F5: 6156 | G5: 14065 | H5: 14154 | I5: 14286 | J5: 5993
A6: > 50 ha | C6: 9050 | D6: 128 | E6: 660 | F6: 62 | G6: 1030 | H6: 912 | I6: 6039 | J6: 219
A7: SUPERFÍCIE TOTAL DAS EXPLORAÇÕES (ha) | C7: 5157213 | D7: 464133 | E7: 646279 | F7: 425922 | G7: 654570 | H7: 684184 | I7: 2007281 | J7: 274845
A8: Superfície agrícola utilizada | C8: 3879579 | D8: 289624 | E8: 489133 | F8: 231458 | G8: 433947 | H8: 456544 | I8: 1842094 | J8: 136779
A9: Matas e florestas sem culturas sob-coberto | C9: 965676 | D9: 160966 | E9: 73494 | F9: 180590 | G9: 168428 | H9: 200065 | I9: 124548 | J9: 57585
A10: Superfície agrícola não utilizada | C10: 243534 | D10: 6418 | E10: 70570 | F10: 7357 | G10: 47225 | H10: 16262 | I10: 17216 | J10: 78486
A11: Outras superfícies | C11: 68425 | D11: 7126 | E11: 13082 | F11: 6517 | G11: 4970 | H11: 11313 | I11: 23423 | J11: 1995
A12: SAU (ha) | C12: 3879579 | D12: 289624 | E12: 489133 | F12: 231458 | G12: 433947 | H12: 456544 | I12: 1842094 | J12: 136779
A13: SAU por Classe de SAU
A14: <5 ha | C14: 731458 | D14: 161763 | E14: 106275 | F14: 167716 | G14: 85372 | H14: 128885 | I14: 47458 | J14: 33989
A15: 5 a 50 ha | C15: 1090803 | D15: 81260 | E15: 322576 | F15: 55156 | G15: 173795 | H15: 160121 | I15: 226550 | J15: 71347
A16: > 50 ha | C16: 2057316 | D16: 46600 | E16: 60282 | F16: 8587 | G16: 174780 | H16: 167538 | I16: 1568086 | J16: 31444
A17: Composição da SAU
A18: Terras aráveis | C18: 2330327 | D18: 176575 | E18: 222025 | F18: 153148 | G18: 215620 | H18: 221287 | I18: 1278436 | J18: 63237
A19: Horta familiar | C19: 31765 | D19: 3816 | E19: 8003 | F19: 6505 | G19: 5938 | H19: 3593 | I19: 2562 | J19: 1348
A20: Culturas permanentes | C20: 780966 | D20: 45160 | E20: 178449 | F20: 56460 | G20: 100177 | H20: 171795 | I20: 169037 | J20: 59888
A21: Pastagens permanentes | C21: 736521 | D21: 64072 | E21: 80656 | F21: 15345 | G21: 112212 | H21: 59870 | I21: 392059 | J21: 12306
A22: Cultura temporárias(1) (ha)
A23: Total | C23: 1869929 | D23: 349411 | E23: 184551 | F23: 233010 | G23: 189099 | H23: 213333 | I23: 660920 | J23: 39606
A24: Cereais para grão | C24: 896507 | D24: 86367 | E24: 110916 | F24: 82590 | G24: 81866 | H24: 86699 | I24: 424335 | J24: 23734
A25: Leguminosas secas para grão | C25: 80711 | D25: 36503 | E25: 2662 | F25: 18789 | G25: 8797 | H25: 4804 | I25: 6215 | J25: 2942
A26: Prados temporários | C26: 73865 | D26: 17200 | E26: 1974 | F26: 2806 | G26: 10970 | H26: 10646 | I26: 28544 | J26: 1725
A27: Culturas forrageiras | C27: 565460 | D27: 164798 | E27: 42634 | F27: 96883 | G27: 70781 | H27: 59329 | I27: 127413 | J27: 3622
A28: Batata | C28: 103652 | D28: 19266 | E28: 25778 | F28: 26106 | G28: 14276 | H28: 14918 | I28: 1742 | J28: 1566
A29: Beterraba sacarina | C29: 39 | D29: 0 | E29: 0 | F29: 1 | G29: 3 | H29: 34 | I29: 0 | J29: 0
A30: Culturas industriais | C30: 63960 | D30: 68 | E30: 100 | F30: 384 | G30: 1075 | H30: 3267 | I30: 58997 | J30: 70
A31: Culturas hortícolas | C31: 61709 | D31: 4304 | E31: 438 | F31: 4429 | G31: 881 | H31: 32789 | I31: 13136 | J31: 5733
A32: Flores e plantas ornamentais | C32: 633 | D32: 144 | E32: 2 | F32: 65 | G32: 7 | H32: 342 | I32: 5 | J32: 68
A33: Outras culturas temporárias | C33: 23393 | D33: 20760 | E33: 48 | F33: 956 | G33: 444 | H33: 504 | I33: 533 | J33: 147
A34: Pousio (ha) | C34: 830303 | D34: 495 | E34: 61746 | F34: 4209 | G34: 58943 | H34: 31129 | I34: 645844 | J34: 27938
A35: CULTURAS PERMANENTES (ha)
A36: Frutos frescos (excepto citrinos) | C36: 75715 | D36: 2709 | E36: 7985 | F36: 4457 | G36: 10215 | H36: 38857 | I36: 5275 | J36: 6217
A37: Citrinos | C37: 25598 | D37: 937 | E37: 483 | F37: 851 | G37: 593 | H37: 4391 | I37: 3560 | J37: 14783
A38: Frutos sub-tropicais | C38: 1042 | D38: 621 | E38: 5 | F38: 138 | G38: 30 | H38: 62 | I38: 58 | J38: 128
A39: Frutos de casca rija | C39: 73738 | D39: 297 | E39: 38399 | F39: 876 | G39: 5065 | H39: 605 | I39: 1886 | J39: 26610
A40: Olival | C40: 340514 | D40: 2660 | E40: 61744 | F40: 15439 | G40: 59300 | H40: 48725 | I40: 144957 | J40: 7689
A41: Vinha | C41: 262025 | D41: 37809 | E41: 69743 | F41: 33558 | G41: 24865 | H41: 78826 | I41: 12777 | J41: 4448
A42: Outras culturas permanentes | C42: 2334 | D42: 128 | E42: 90 | F42: 1142 | G42: 109 | H42: 328 | I42: 525 | J42: 13
A43: PRADOS E PASTAGENS PERMANENTES (2) (ha) | C43: 754825 | D43: 65233 | E43: 82171 | F43: 16207 | G43: 113429 | H43: 65049 | I43: 398617 | J43: 14120
A44: VOLUME DE TRABALHO (UTA) | C44: 810005 | D44: 218450 | E44: 99162 | F44: 188075 | G44: 85447 | H44: 126898 | I44: 61913 | J44: 30061
A45: Tipo de Mão-de-Obra
A46: Mão-de-obra agrícola familiar | C46: 687485 | D46: 199995 | E46: 79175 | F46: 174620 | G46: 76041 | H46: 97431 | I46: 34695 | J46: 25529
A47: Produtor | C47: 311206 | D47: 77518 | E47: 39038 | F47: 71686 | G47: 37326 | H47: 50633 | I47: 20764 | J47: 14240
A48: Mão-de-obra agrícola não familiar | C48: 122520 | D48: 18455 | E48: 19987 | F48: 13454 | G48: 9406 | H48: 29467 | I48: 27218 | J48: 4533
A49: Permanente | C49: 58932 | D49: 8791 | E49: 6992 | F49: 5213 | G49: 3057 | H49: 15072 | I49: 16894 | J49: 2913
A50: Eventual | C50: 60565 | D50: 9149 | E50: 12318 | F50: 7763 | G50: 6078 | H50: 13893 | I50: 9852 | J50: 1512
A51: POPULAÇÃO AGRÍCOLA (nº) | C51: 1799736 | D51: 466783 | E51: 255688 | F51: 426328 | G51: 163719 | H51: 295495 | I51: 121804 | J51: 69919
A52: PRODUTORES AGRÍCOLAS (nº)
A53: Homem | C53: 462535 | D53: 84012 | E53: 67120 | F53: 107945 | G53: 51559 | H53: 89002 | I53: 40660 | J53: 22237
A54: Mulher | C54: 83534 | D54: 26802 | E54: 12934 | F54: 17034 | G54: 8576 | H54: 9498 | I54: 5046 | J54: 3644
A55: Nível etário do Produtor
A56: 15 a 44 anos | C56: 107122 | D56: 26302 | E56: 15660 | F56: 27835 | G56: 8216 | H56: 18524 | I56: 7603 | J56: 2982
A57: 45 a 64 anos | C57: 282161 | D57: 58131 | E57: 40492 | F57: 67177 | G57: 28148 | H57: 52932 | I57: 22913 | J57: 12368
A58: 65 e mais anos | C58: 156786 | D58: 26381 | E58: 23902 | F58: 29967 | G58: 23771 | H58: 27044 | I58: 15190 | J58: 10531
A59: Nível de escolaridade do produtor
A60: Nenhum | C60: 255187 | D60: 54217 | E60: 39205 | F60: 51342 | G60: 31037 | H60: 42312 | I60: 22884 | J60: 14190
A61: Básico | C61: 268772 | D61: 53391 | E61: 37143 | F61: 69879 | G61: 26847 | H61: 51420 | I61: 19758 | J61: 10334
A62: Secundário/Pós-secundário | C62: 16041 | D62: 2191 | E62: 2556 | F62: 2919 | G62: 1587 | H62: 3622 | I62: 2145 | J62: 1021
A63: Superior | C63: 6069 | D63: 1015 | E63: 1150 | F63: 839 | G63: 664 | H63: 1146 | I63: 919 | J63: 336
A64: Formação agrícola do Produtor
A65: Exclusivamente prática | C65: n.d. | D65: n.d. | E65: n.d. | F65: n.d. | G65: n.d. | H65: n.d. | I65: n.d. | J65: n.d.
A66: Curso F.Prof. relacionados c/ activ. agrícola | C66: n.d. | D66: n.d. | E66: n.d. | F66: n.d. | G66: n.d. | H66: n.d. | I66: n.d. | J66: n.d.
A67: Completa (secundário ou superior agrícola) | C67: n.d. | D67: n.d. | E67: n.d. | F67: n.d. | G67: n.d. | H67: n.d. | I67: n.d. | J67: n.d.
A68: (1) Inclui culturas sucessivas e sob coberto de permanentes
A69: (2) inclui pastagens sob coberto de permanentes

Sheet 1999 (hidden)
A1: 1999 | C1: Continente | D1: EDM | E1: TM | F1: BL | G1: BI | H1: LVT | I1: ALE | J1: ALG
A2: EXPLORAÇÕES (nº) | C2: 382163 | D2: 67546 | E2: 70006 | F2: 79806 | G2: 48313 | H2: 61615 | I2: 35906 | J2: 18971
A3: Explorações por Classe de SAU (nº)
A4: > 0 a <5 ha | C4: 296010 | D4: 60380 | E4: 46124 | F4: 74145 | G4: 36091 | H4: 48148 | I4: 17140 | J4: 13982
A5: 5 a 50 ha | C5: 73258 | D5: 6830 | E5: 22984 | F5: 5061 | G5: 10857 | H5: 11370 | I5: 11529 | J5: 4627
A6: > 50 ha | C6: 9612 | D6: 152 | E6: 722 | F6: 88 | G6: 1231 | H6: 1027 | I6: 6205 | J6: 187
A7: SUPERFÍCIE TOTAL DAS EXPLORAÇÕES (ha) | C7: 5039569 | D7: 374832 | E7: 637104 | F7: 316646 | G7: 618526 | H7: 706000 | I7: 2158882 | J7: 227578
A8: Superfície agrícola utilizada | C8: 3736140 | D8: 215675 | E8: 457881 | F8: 169779 | G8: 418977 | H8: 447853 | I8: 1924043 | J8: 101932
A9: Matas e florestas sem culturas sob-coberto | C9: 997497 | D9: 133236 | E9: 101797 | F9: 131795 | G9: 160471 | H9: 220126 | I9: 189789 | J9: 60284
A10: Superfície agrícola não utilizada | C10: 201084 | D10: 7745 | E10: 61925 | F10: 8142 | G10: 31543 | H10: 15374 | I10: 14158 | J10: 62196
A11: Outras superfícies | C11: 104848 | D11: 18176 | E11: 15501 | F11: 6930 | G11: 7535 | H11: 22647 | I11: 30892 | J11: 3166
A12: SAU (ha) | C12: 3736140 | D12: 215675 | E12: 457881 | F12: 169779 | G12: 418977 | H12: 447853 | I12: 1924043 | J12: 101932
A13: SAU por Classe de SAU
A14: <5 ha | C14: 513791 | D14: 97140 | E14: 96078 | F14: 111917 | G14: 65446 | H14: 84106 | I14: 33707 | J14: 25397
A15: 5 a 50 ha | C15: 928258 | D15: 64978 | E15: 287293 | F15: 50293 | G15: 144511 | H15: 136405 | I15: 190137 | J15: 54642
A16: > 50 ha | C16: 2294091 | D16: 53557 | E16: 74510 | F16: 7569 | G16: 209020 | H16: 227342 | I16: 1700200 | J16: 21893
A17: Composição da SAU
A18: Terras aráveis | C18: 1725887 | D18: 106780 | E18: 152660 | F18: 99158 | G18: 152390 | H18: 204970 | I18: 975840 | J18: 34090
A19: Horta familiar | C19: 20965 | D19: 2627 | E19: 5473 | F19: 4479 | G19: 3585 | H19: 2750 | I19: 1265 | J19: 788
A20: Culturas permanentes | C20: 705232 | D20: 35529 | E20: 192795 | F20: 48292 | G20: 93058 | H20: 117592 | I20: 161657 | J20: 56309
A21: Pastagens permanentes | C21: 1284056 | D21: 70739 | E21: 106953 | F21: 17850 | G21: 169945 | H21: 122542 | I21: 785282 | J21: 10746
A22: CULTURAS TEMPORÁRIAS(1) (ha)
A23: Total | C23: 1378415 | D23: 201585 | E23: 115365 | F23: 144367 | G23: 149942 | H23: 182744 | I23: 564221 | J23: 20190
A24: Cereais para grão | C24: 601003 | D24: 44914 | E24: 57288 | F24: 51856 | G24: 41645 | H24: 70617 | I24: 325832 | J24: 8852
A25: Leguminosas secas para grão | C25: 25246 | D25: 5274 | E25: 1153 | F25: 6390 | G25: 1641 | H25: 1940 | I25: 8031 | J25: 817
A26: Prados temporários | C26: 37246 | D26: 7910 | E26: 2608 | F26: 2620 | G26: 2332 | H26: 8214 | I26: 12756 | J26: 807
A27: Culturas forrageiras | C27: 528049 | D27: 126449 | E27: 40588 | F27: 67414 | G27: 96213 | H27: 55044 | I27: 136253 | J27: 6087
A28: Batata | C28: 47313 | D28: 7096 | E28: 13094 | F28: 11490 | G28: 4733 | H28: 9377 | I28: 863 | J28: 660
A29: Beterraba sacarina | C29: 7551 | D29: 0 | E29: 0 | F29: 211 | G29: 2 | H29: 4333 | I29: 2906 | J29: 100
A30: Culturas industriais | C30: 74400 | D30: 31 | E30: 58 | F30: 377 | G30: 2793 | H30: 3727 | I30: 67301 | J30: 113
A31: Culturas hortícolas | C31: 49708 | D31: 3726 | E31: 516 | F31: 3504 | G31: 501 | H31: 28920 | I31: 9975 | J31: 2566
A32: Flores e plantas ornamentais | C32: 1004 | D32: 225 | E32: 45 | F32: 171 | G32: 5 | H32: 370 | I32: 122 | J32: 66
A33: Outras culturas temporárias | C33: 6889 | D33: 5955 | E33: 16 | F33: 332 | G33: 77 | H33: 203 | I33: 181 | J33: 125
A34: Pousio (ha) | C34: 562646 | D34: 459 | E34: 50162 | F34: 2874 | G34: 30744 | H34: 33820 | I34: 429328 | J34: 15259
A35: CULTURAS PERMANENTES (ha)
A36: Frutos frescos (excepto citrinos) | C36: 52342 | D36: 1868 | E36: 9051 | F36: 3563 | G36: 6769 | H36: 24614 | I36: 2686 | J36: 3791
A37: Citrinos | C37: 22428 | D37: 696 | E37: 585 | F37: 631 | G37: 415 | H37: 2789 | I37: 2188 | J37: 15124
A38: Frutos sub-tropicais | C38: 1197 | D38: 780 | E38: 4 | F38: 173 | G38: 4 | H38: 12 | I38: 7 | J38: 217
A39: Frutos de casca rija | C39: 80281 | D39: 674 | E39: 46334 | F39: 996 | G39: 4276 | H39: 746 | I39: 1997 | J39: 25258
A40: Olival | C40: 335028 | D40: 1126 | E40: 72288 | F40: 17585 | G40: 60325 | H40: 36829 | I40: 138084 | J40: 8791
A41: Vinha | C41: 211821 | D41: 30231 | E41: 64294 | F41: 24494 | G41: 21148 | H41: 52084 | I41: 16580 | J41: 2991
A42: Outras culturas permanentes | C42: 2135 | D42: 154 | E42: 239 | F42: 850 | G42: 121 | H42: 519 | I42: 115 | J42: 138
A43: PRADOS E PASTAGENS PERMANENTES (2) (ha) | C43: 1331033 | D43: 71533 | E43: 107673 | F43: 19896 | G43: 175831 | H43: 126077 | I43: 818302 | J43: 11721
A44: VOLUME DE TRABALHO (UTA) | C44: 497537 | D44: 122487 | E44: 81566 | F44: 107553 | G44: 49193 | H44: 75630 | I44: 44162 | J44: 16946
A45: Tipo de Mão-de-Obra
A46: Mão-de-obra agrícola familiar | C46: 408224 | D46: 109319 | E46: 64975 | F46: 98414 | G46: 42453 | H46: 54397 | I46: 25021 | J46: 13644
A47: Produtor | C47: 206241 | D47: 49181 | E47: 32538 | F47: 47351 | G47: 23008 | H47: 30023 | I47: 16051 | J47: 8090
A48: Mão-de-obra agrícola não familiar | C48: 89313 | D48: 13168 | E48: 16591 | F48: 9139 | G48: 6740 | H48: 21233 | I48: 19140 | J48: 3302
A49: Permanente | C49: 43962 | D49: 6661 | E49: 5481 | F49: 4136 | G49: 2476 | H49: 11312 | I49: 11835 | J49: 2061
A50: Eventual | C50: 42525 | D50: 6011 | E50: 10408 | F50: 4626 | G50: 4017 | H50: 9488 | I50: 6825 | J50: 1151
A51: POPULAÇÃO AGRÍCOLA (nº) | C51: 1123418 | D51: 248443 | E51: 196960 | F51: 246329 | G51: 121920 | H51: 170116 | I51: 91678 | J51: 47972
A52: PRODUTORES AGRÍCOLAS (nº)
A53: Homem | C53: 289291 | D53: 43726 | E53: 53202 | F53: 59607 | G53: 37508 | H53: 51358 | I53: 28585 | J53: 15305
A54: Mulher | C54: 86647 | D54: 22854 | E54: 15906 | F54: 19659 | G54: 10431 | H54: 8586 | I54: 5860 | J54: 3351
A55: Nível etário do Produtor
A56: 15 a 44 anos | C56: 55538 | D56: 12072 | E56: 11302 | F56: 11420 | G56: 5351 | H56: 8634 | I56: 5160 | J56: 1599
A57: 45 a 64 anos | C57: 176575 | D57: 32688 | E57: 31594 | F57: 41748 | G57: 19752 | H57: 28663 | I57: 14461 | J57: 7669
A58: 65 e mais anos | C58: 143825 | D58: 21820 | E58: 26212 | F58: 26098 | G58: 22836 | H58: 22647 | I58: 14824 | J58: 9388
A59: Nível de escolaridade do produtor
A60: Nenhum | C60: 129360 | D60: 25418 | E60: 24504 | F60: 24106 | G60: 18637 | H60: 17708 | I60: 11695 | J60: 7292
A61: Básico | C61: 228474 | D61: 38733 | E61: 40869 | F61: 52845 | G61: 27146 | H61: 39050 | I61: 19561 | J61: 10270
A62: Secundário/Pós-secundário | C62: 8230 | D62: 1035 | E62: 1485 | F62: 1130 | G62: 922 | H62: 1708 | I62: 1366 | J62: 584
A63: Superior | C63: 9874 | D63: 1394 | E63: 2250 | F63: 1185 | G63: 1234 | H63: 1478 | I63: 1823 | J63: 510
A64: Formação agrícola do Produtor
A65: Exclusivamente prática | C65: 353898 | D65: 60957 | E65: 65599 | F65: 76051 | G65: 46362 | H65: 55260 | I65: 31948 | J65: 17721
A66: Curso F.Prof. relacionados c/ activ. agrícola | C66: 19273 | D66: 5359 | E66: 3038 | F66: 2980 | G66: 1323 | H66: 4106 | I66: 1670 | J66: 797
A67: Completa (secundário ou superior agrícola) | C67: 2767 | D67: 264 | E67: 471 | F67: 235 | G67: 254 | H67: 578 | I67: 827 | J67: 138
A68: (1) Inclui culturas sucessivas e sob coberto de permanentes
A69: (2) inclui pastagens sob coberto de permanentes

Sheet 2009 (hidden)
A1: 2009 | C1: Continente | D1: EDM | E1: TM | F1: BL | G1: BI | H1: LVT | I1: ALE | J1: ALG
A2: EXPLORAÇÕES (nº) | C2: 278114 | D2: 49037 | E2: 61804 | F2: 49424 | G2: 33763 | H2: 39875 | I2: 31828 | J2: 12383
A3: Explorações por Classe de SAU (nº)
A4: > 0 a <5 ha | C4: 207062 | D4: 42732 | E4: 41227 | F4: 44966 | G4: 24855 | H4: 29979 | I4: 14706 | J4: 8597
A5: 5 a 50 ha | C5: 59667 | D5: 5943 | E5: 19750 | F5: 4094 | G5: 7693 | H5: 8464 | I5: 10184 | J5: 3539
A6: > 50 ha | C6: 10047 | D6: 191 | E6: 735 | F6: 101 | G6: 1179 | H6: 1095 | I6: 6535 | J6: 211
A7: SUPERFÍCIE TOTAL DAS EXPLORAÇÕES (ha) | C7: 4571531 | D7: 312756 | E7: 619172 | F7: 222136 | G7: 503126 | H7: 543222 | I7: 2205930 | J7: 165189
A8: Superfície agrícola utilizada | C8: 3542305 | D8: 211154 | E8: 432873 | F8: 125436 | G8: 337031 | H8: 391006 | I8: 1956508 | J8: 88297
A9: Matas e florestas sem culturas sob-coberto | C9: 837431 | D9: 91139 | E9: 141138 | F9: 87108 | G9: 133621 | H9: 133716 | I9: 204104 | J9: 46605
A10: Superfície agrícola não utilizada | C10: 125283 | D10: 3543 | E10: 40223 | F10: 5822 | G10: 24674 | H10: 8331 | I10: 14593 | J10: 28096
A11: Outras superfícies | C11: 66512 | D11: 6920 | E11: 4937 | F11: 3770 | G11: 7800 | H11: 10169 | I11: 30724 | J11: 2191
A12: SAU (ha) | C12: 3542305 | D12: 211154 | E12: 432873 | F12: 125436 | G12: 337031 | H12: 391006 | I12: 1956508 | J12: 88297
A13: SAU por Classe de SAU
A14: <5 ha | C14: 382341 | D14: 73356 | E14: 88640 | F14: 71587 | G14: 46245 | H14: 56041 | I14: 29656 | J14: 16815
A15: 5 a 50 ha | C15: 777505 | D15: 62390 | E15: 239503 | F15: 44853 | G15: 105715 | H15: 109168 | I15: 170840 | J15: 45036
A16: > 50 ha | C16: 2382459 | D16: 75409 | E16: 104729 | F16: 8995 | G16: 185071 | H16: 225797 | I16: 1756013 | J16: 26446
A17: Composição da SAU
A18: Terras aráveis | C18: 1158805 | D18: 85759 | E18: 101615 | F18: 70547 | G18: 100001 | H18: 166379 | I18: 612176 | J18: 22327
A19: Horta familiar | C19: 18991 | D19: 3181 | E19: 5030 | F19: 4557 | G19: 2476 | H19: 1944 | I19: 1176 | J19: 628
A20: Culturas permanentes | C20: 686221 | D20: 26932 | E20: 191614 | F20: 33979 | G20: 74049 | H20: 93628 | I20: 221013 | J20: 45007
A21: Pastagens permanentes | C21: 1678288 | D21: 95282 | E21: 134614 | F21: 16353 | G21: 160505 | H21: 129055 | I21: 1122142 | J21: 20335
A22: Cultura temporárias(1) (ha)
A23: Total | C23: 923537 | D23: 139237 | E23: 66830 | F23: 85425 | G23: 92269 | H23: 139840 | I23: 391742 | J23: 8193
A24: Cereais para grão | C24: 345556 | D24: 28895 | E24: 29404 | F24: 34150 | G24: 16630 | H24: 57035 | I24: 177223 | J24: 2219
A25: Leguminosas secas para grão | C25: 13152 | D25: 1228 | E25: 442 | F25: 1674 | G25: 659 | H25: 944 | I25: 8131 | J25: 73
A26: Prados temporários | C26: 31652 | D26: 7352 | E26: 1129 | F26: 2055 | G26: 4087 | H26: 5595 | I26: 11377 | J26: 57
A27: Culturas forrageiras | C27: 442320 | D27: 96712 | E27: 30413 | F27: 41545 | G27: 68779 | H27: 37842 | I27: 162639 | J27: 4390
A28: Batata | C28: 17331 | D28: 2059 | E28: 4927 | F28: 2923 | G28: 1321 | H28: 5592 | I28: 347 | J28: 162
A29: Beterraba sacarina | C29: 0 | D29: 0 | E29: 0 | F29: 0 | G29: 0 | H29: 0 | I29: 0 | J29: 0
A30: Culturas industriais | C30: 24764 | D30: 22 | E30: 26 | F30: 110 | G30: 383 | H30: 1098 | I30: 23119 | J30: 6
A31: Culturas hortícolas | C31: 46367 | D31: 2542 | E31: 438 | F31: 2749 | G31: 309 | H31: 31089 | I31: 8214 | J31: 1026
A32: Flores e plantas ornamentais | C32: 1525 | D32: 317 | E32: 31 | F32: 142 | G32: 6 | H32: 467 | I32: 414 | J32: 147
A33: Outras culturas temporárias | C33: 870 | D33: 110 | E33: 20 | F33: 77 | G33: 95 | H33: 177 | I33: 278 | J33: 113
A34: Pousio (ha) | C34: 341465 | D34: 3851 | E34: 40585 | F34: 5787 | G34: 18995 | H34: 32180 | I34: 225721 | J34: 14346
A35: CULTURAS PERMANENTES (ha)
A36: Frutos frescos (excepto citrinos) | C36: 39746 | D36: 1666 | E36: 7754 | F36: 1929 | G36: 5999 | H36: 16567 | I36: 2477 | J36: 3355
A37: Citrinos | C37: 16389 | D37: 451 | E37: 472 | F37: 307 | G37: 248 | H37: 1525 | I37: 1852 | J37: 11533
A38: Frutos sub-tropicais | C38: 1764 | D38: 1161 | E38: 8 | F38: 316 | G38: 4 | H38: 8 | I38: 10 | J38: 257
A39: Frutos de casca rija | C39: 114980 | D39: 982 | E39: 46920 | F39: 890 | G39: 4319 | H39: 12295 | I39: 29528 | J39: 20046
A40: Olival | C40: 335841 | D40: 881 | E40: 75266 | F40: 14341 | G40: 47336 | H40: 25540 | I40: 164078 | J40: 8399
A41: Vinha | C41: 175773 | D41: 21708 | E41: 60907 | F41: 15467 | G41: 16076 | H41: 37220 | I41: 22998 | J41: 1396
A42: Outras culturas permanentes | C42: 1728 | D42: 82 | E42: 288 | F42: 728 | G42: 67 | H42: 473 | I42: 69 | J42: 21
A43: PRADOS E PASTAGENS PERMANENTES (2) (ha) | C43: 1721587 | D43: 95992 | E43: 134964 | F43: 17779 | G43: 164528 | H43: 133477 | I43: 1153264 | J43: 21584
A44: VOLUME DE TRABALHO (UTA) | C44: 341502 | D44: 78758 | E44: 69330 | F44: 65502 | G44: 33552 | H44: 47269 | I44: 35659 | J44: 11432
A45: Tipo de Mão-de-Obra
A46: Mão-de-obra agrícola familiar | C46: 272783 | D46: 70348 | E46: 56740 | F46: 58888 | G46: 29459 | H46: 31174 | I46: 17252 | J46: 8924
A47: Produtor | C47: 147342 | D47: 34818 | E47: 30836 | F47: 30561 | G47: 16238 | H47: 18373 | I47: 11204 | J47: 5314
A48: Mão-de-obra agrícola não familiar | C48: 68718 | D48: 8410 | E48: 12591 | F48: 6614 | G48: 4093 | H48: 16095 | I48: 18407 | J48: 2509
A49: Permanente | C49: 38960 | D49: 5127 | E49: 4641 | F49: 4075 | G49: 1699 | H49: 10268 | I49: 11440 | J49: 1710
A50: Eventual | C50: 26000 | D50: 2929 | E50: 7219 | F50: 2271 | G50: 2215 | H50: 5570 | I50: 5186 | J50: 610
A51: POPULAÇÃO AGRÍCOLA (nº) | C51: 709928 | D51: 150588 | E51: 151529 | F51: 134174 | G51: 78470 | H51: 96111 | I51: 69849 | J51: 29207
A52: PRODUTORES AGRÍCOLAS (nº)
A53: Homem | C53: 186194 | D53: 26733 | E53: 40455 | F53: 32574 | G53: 23423 | H53: 31135 | I53: 22748 | J53: 9126
A54: Mulher | C54: 84313 | D54: 21200 | E54: 20524 | F54: 16187 | G54: 9901 | H54: 6930 | I54: 6544 | J54: 3027
A55: Nível etário do Produtor
A56: 15 a 44 anos | C56: 24403 | D56: 5533 | E56: 6071 | F56: 3422 | G56: 2095 | H56: 3470 | I56: 3150 | J56: 662
A57: 45 a 64 anos | C57: 112932 | D57: 22236 | E57: 26056 | F57: 22363 | G57: 12050 | H57: 15369 | I57: 10956 | J57: 3902
A58: 65 e mais anos | C58: 133172 | D58: 20164 | E58: 28852 | F58: 22976 | G58: 19179 | H58: 19226 | I58: 15186 | J58: 7589
A59: Nível de escolaridade do produtor
A60: Nenhum | C60: 60040 | D60: 12184 | E60: 13661 | F60: 9803 | G60: 8441 | H60: 6280 | I60: 6386 | J60: 3285
A61: Básico | C61: 186768 | D61: 32592 | E61: 41163 | F61: 36276 | G61: 21986 | H61: 28569 | I61: 18448 | J61: 7734
A62: Secundário/Pós-secundário | C62: 11361 | D62: 1434 | E62: 2707 | F62: 1404 | G62: 1353 | H62: 1815 | I62: 2058 | J62: 590
A63: Superior | C63: 12338 | D63: 1723 | E63: 3448 | F63: 1278 | G63: 1544 | H63: 1401 | I63: 2400 | J63: 544
A64: Formação agrícola do Produtor
A65: Exclusivamente prática | C65: 240285 | D65: 42159 | E65: 52780 | F65: 44420 | G65: 30639 | H65: 33040 | I65: 25886 | J65: 11361
A66: Curso F.Prof. relacionados c/ activ. agrícola | C66: 27400 | D66: 5480 | E66: 7656 | F66: 4143 | G66: 2427 | H66: 4523 | I66: 2477 | J66: 694
A67: Completa (secundário ou superior agrícola) | C67: 2822 | D67: 294 | E67: 543 | F67: 198 | G67: 258 | H67: 502 | I67: 929 | J67: 98
A68: (1) Inclui culturas sucessivas e sob coberto de permanentes
A69: (2) inclui pastagens sob coberto de permanentes

Sheet 2013 (hidden)
A1: 2013 | C1: Continente | D1: EDM | E1: TM | F1: BL | G1: BI | H1: LVT | I1: ALE | J1: ALG
A2: EXPLORAÇÕES (nº) | C2: 240527 | D2: 41601 | E2: 57224 | F2: 38356 | G2: 30862 | H2: 31450 | I2: 29478 | J2: 11556
A3: Explorações por Classe de SAU (nº)
A4: > 0 a <5 ha | C4: 170929 | D4: 34958 | E4: 36763 | F4: 33787 | G4: 22572 | H4: 22192 | I4: 13094 | J4: 7563
A5: 5 a 50 ha | C5: 58536 | D5: 6311 | E5: 19446 | F5: 4255 | G5: 6991 | H5: 7880 | I5: 9880 | J5: 3774
A6: > 50 ha | C6: 10249 | D6: 160 | E6: 947 | F6: 127 | G6: 1290 | H6: 1133 | I6: 6386 | J6: 206
A7: SUPERFÍCIE TOTAL DAS EXPLORAÇÕES (ha) | C7: 4492242 | D7: 305920 | E7: 629636 | F7: 201908 | G7: 481700 | H7: 500542 | I7: 2210340 | J7: 162196
A8: Superfície agrícola utilizada | C8: 3517740 | D8: 214554 | E8: 432056 | F8: 117387 | G8: 341976 | H8: 370390 | I8: 1949142 | J8: 92234
A9: Matas e florestas sem culturas sob-coberto | C9: 800482 | D9: 78380 | E9: 161286 | F9: 77716 | G9: 112576 | H9: 110706 | I9: 215120 | J9: 44698
A10: Superfície agrícola não utilizada | C10: 99394 | D10: 5144 | E10: 29164 | F10: 3215 | G10: 19009 | H10: 6334 | I10: 13407 | J10: 23122
A11: Outras superfícies | C11: 74626 | D11: 7842 | E11: 7130 | F11: 3591 | G11: 8139 | H11: 13113 | I11: 32670 | J11: 2141
A12: SAU (ha) | C12: 3517740 | D12: 214554 | E12: 432056 | F12: 117387 | G12: 341976 | H12: 370390 | I12: 1949142 | J12: 92234
A13: SAU por Classe de SAU
A14: <5 ha | C14: 325926 | D14: 61143 | E14: 80763 | F14: 58033 | G14: 41743 | H14: 42278 | I14: 26893 | J14: 15073
A15: 5 a 50 ha | C15: 797420 | D15: 69368 | E15: 258028 | F15: 49189 | G15: 98498 | H15: 105269 | I15: 167569 | J15: 49499
A16: > 50 ha | C16: 2394395 | D16: 84042 | E16: 93265 | F16: 10165 | G16: 201736 | H16: 222843 | I16: 1754681 | J16: 27663
A17: Composição da SAU
A18: Terras aráveis | C18: 1081311 | D18: 82587 | E18: 104999 | F18: 68662 | G18: 85449 | H18: 153181 | I18: 561425 | J18: 25007
A19: Horta familiar | C19: 14473 | D19: 2125 | E19: 4492 | F19: 2442 | G19: 1974 | H19: 1684 | I19: 1297 | J19: 460
A20: Culturas permanentes | C20: 704302 | D20: 26924 | E20: 196735 | F20: 28914 | G20: 75155 | H20: 94697 | I20: 235239 | J20: 46638
A21: Pastagens permanentes | C21: 1717653 | D21: 102918 | E21: 125829 | F21: 17369 | G21: 179399 | H21: 120829 | I21: 1151181 | J21: 20129
A22: Cultura temporárias(1) (ha)
A23: Total | C23: 840993 | D23: 130975 | E23: 65703 | F23: 81305 | G23: 70996 | H23: 129301 | I23: 350766 | J23: 11946
A24: Cereais para grão | C24: 305390 | D24: 21966 | E24: 31487 | F24: 28500 | G24: 12508 | H24: 54553 | I24: 154135 | J24: 2240
A25: Leguminosas secas para grão | C25: 9257 | D25: 1091 | E25: 512 | F25: 1159 | G25: 245 | H25: 505 | I25: 5589 | J25: 156
A26: Prados temporários | C26: 35532 | D26: 8171 | E26: 2442 | F26: 3117 | G26: 5029 | H26: 3836 | I26: 9283 | J26: 3655
A27: Culturas forrageiras | C27: 414201 | D27: 94975 | E27: 26571 | F27: 42802 | G27: 51997 | H27: 38184 | I27: 155209 | J27: 4464
A28: Batata | C28: 11879 | D28: 1661 | E28: 3862 | F28: 1883 | G28: 639 | H28: 3612 | I28: 129 | J28: 93
A29: Beterraba sacarina | C29: 0 | D29: 0 | E29: 0 | F29: 0 | G29: 0 | H29: 0 | I29: 0 | J29: 0
A30: Culturas industriais | C30: 19007 | D30: 196 | E30: 39 | F30: 190 | G30: 4 | H30: 612 | I30: 17965 | J30: 0
A31: Culturas hortícolas | C31: 41205 | D31: 2369 | E31: 726 | F31: 3235 | G31: 335 | H31: 26600 | I31: 6983 | J31: 958
A32: Flores e plantas ornamentais | C32: 2588 | D32: 515 | E32: 38 | F32: 336 | G32: 0 | H32: 978 | I32: 455 | J32: 266
A33: Outras culturas temporárias | C33: 1934 | D33: 31 | E33: 27 | F33: 83 | G33: 238 | H33: 422 | I33: 1019 | J33: 114
A34: Pousio (ha) | C34: 333031 | D34: 3242 | E34: 43391 | F34: 7664 | G34: 21553 | H34: 28454 | I34: 215509 | J34: 13218
A35: CULTURAS PERMANENTES (ha)
A36: Frutos frescos (excepto citrinos) | C36: 42667 | D36: 2302 | E36: 10236 | F36: 1656 | G36: 6538 | H36: 15868 | I36: 1624 | J36: 4442
A37: Citrinos | C37: 17424 | D37: 501 | E37: 733 | F37: 288 | G37: 305 | H37: 1532 | I37: 1129 | J37: 12935
A38: Frutos sub-tropicais | C38: 2412 | D38: 1878 | E38: 9 | F38: 352 | G38: 2 | H38: 1 | I38: 0 | J38: 171
A39: Frutos de casca rija | C39: 139750 | D39: 1051 | E39: 48288 | F39: 1445 | G39: 9524 | H39: 15870 | I39: 44308 | J39: 19263
A40: Olival | C40: 340284 | D40: 699 | E40: 77057 | F40: 12499 | G40: 45784 | H40: 30613 | I40: 165092 | J40: 8540
A41: Vinha | C41: 160424 | D41: 20337 | E41: 60330 | F41: 12173 | G41: 12975 | H41: 30390 | I41: 22992 | J41: 1226
A42: Outras culturas permanentes | C42: 1342 | D42: 156 | E42: 82 | F42: 501 | G42: 28 | H42: 421 | I42: 94 | J42: 61
A43: PRADOS E PASTAGENS PERMANENTES (2) (ha) | C43: 1773304 | D43: 103394 | E43: 126891 | F43: 17677 | G43: 185357 | H43: 125259 | I43: 1193821 | J43: 20904
A44: VOLUME DE TRABALHO (UTA) | C44: 304677 | D44: 68404 | E44: 68998 | F44: 48669 | G44: 30355 | H44: 40832 | I44: 35617 | J44: 11801
A45: Tipo de Mão-de-Obra
A46: Mão-de-obra agrícola familiar | C46: 230012 | D46: 56991 | E46: 55496 | F46: 42261 | G46: 26354 | H46: 22919 | I46: 17836 | J46: 8157
A47: Produtor | C47: 123072 | D47: 27905 | E47: 28757 | F47: 21678 | G47: 14192 | H47: 13422 | I47: 12087 | J47: 5030
A48: Mão-de-obra agrícola não familiar | C48: 74664 | D48: 11413 | E48: 13502 | F48: 6409 | G48: 4001 | H48: 17914 | I48: 17781 | J48: 3644
A49: Permanente | C49: 46010 | D49: 8194 | E49: 6074 | F49: 4260 | G49: 1851 | H49: 11310 | I49: 11645 | J49: 2675
A50: Eventual | C50: 23795 | D50: 2805 | E50: 6195 | F50: 1630 | G50: 1983 | H50: 6254 | I50: 4243 | J50: 684
A51: POPULAÇÃO AGRÍCOLA (nº) | C51: 604926 | D51: 124339 | E51: 138731 | F51: 106486 | G51: 73147 | H51: 76290 | I51: 61473 | J51: 24460
A52: PRODUTORES AGRÍCOLAS (nº)
A53: Homem | C53: 156996 | D53: 22063 | E53: 36440 | F53: 24726 | G53: 21188 | H53: 23642 | I53: 20900 | J53: 8036
A54: Mulher | C54: 72973 | D54: 17778 | E54: 19486 | F54: 12737 | G54: 9111 | H54: 5370 | I54: 5301 | J54: 3189
A55: Nível etário do Produtor
A56: 15 a 44 anos | C56: 17842 | D56: 3378 | E56: 5005 | F56: 2283 | G56: 1828 | H56: 2485 | I56: 2352 | J56: 508
A57: 45 a 64 anos | C57: 88447 | D57: 17231 | E57: 21972 | F57: 15332 | G57: 9617 | H57: 11098 | I57: 10021 | J57: 3175
A58: 65 e mais anos | C58: 123680 | D58: 19232 | E58: 28947 | F58: 19848 | G58: 18855 | H58: 15429 | I58: 13828 | J58: 7542
A59: Nível de escolaridade do produtor
A60: Nenhum | C60: 43102 | D60: 8087 | E60: 11103 | F60: 6563 | G60: 7110 | H60: 3940 | I60: 3916 | J60: 2383
A61: Básico | C61: 159711 | D61: 27986 | E61: 37548 | F61: 27938 | G61: 19331 | H61: 21938 | I61: 17509 | J61: 7460
A62: Secundário/Pós-secundário | C62: 13784 | D62: 1847 | E62: 3677 | F62: 1642 | G62: 1918 | H62: 1648 | I62: 2370 | J62: 682
A63: Superior | C63: 13372 | D63: 1921 | E63: 3598 | F63: 1321 | G63: 1940 | H63: 1486 | I63: 2406 | J63: 700
A64: Formação agrícola do Produtor
A65: Exclusivamente prática | C65: 194177 | D65: 32010 | E65: 46471 | F65: 32253 | G65: 27262 | H65: 23503 | I65: 22501 | J65: 10177
A66: Curso F.Prof. relacionados c/ activ. agrícola | C66: 32515 | D66: 7371 | E66: 8866 | F66: 5029 | G66: 2711 | H66: 4938 | I66: 2682 | J66: 918
A67: Completa (secundário ou superior agrícola) | C67: 3277 | D67: 460 | E67: 589 | F67: 182 | G67: 327 | H67: 570 | I67: 1018 | J67: 130
A68: (1) Inclui culturas sucessivas e sob coberto de permanentes
A69: (2) inclui pastagens sob coberto de permanentes

Sheet Evolução Estrutura (hidden)
B1: Evolução Estrutural das Explorações Agrícolas do Continente
B3: Escolha variável 1 | G3: Escolha variável 2 | M3: Escolha tipo de evolução
B7: =+"Evolução comparativa em " & Sheet1!I38 -> Evolução comparativa em Valor Absoluto
U15: Conceito Variável 1
U16: =+Sheet1!C38& "- " &INDEX(Sheet1!$P$41:$P$93,Sheet1!$D$38) -> Nº de Explorações- Unidade técnico-económica que utiliza fatores de produção comuns, tais como: mão de obra, máquinas, instalações, terrenos, entre outros, e que deve satisfazer obrigatoriamente as quatro condições seguintes: 1. produzir produtos agrícolas ou manter em boas condições agrícolas e ambientais as terras que já não são utilizadas para fins produtivos; 2. atingir ou ultrapassar uma certa dimensão (área, número de animais); 3. estar submetida a uma gestão única; 4. estar localizada num local bem determinado e identificável.
U24: Conceito Variável 2
U25: =+Sheet1!G38& " - " &INDEX(Sheet1!$P$41:$P$93,Sheet1!$H$38) -> SAU de explorações 5 a 50 ha - Superfície da exploração que inclui: terras aráveis (limpa e sob-coberto de matas e florestas), horta familiar, culturas permanentes e pastagens permanentes.
T34: Fonte
U36: Recenseamento Agrícola 1989, 1999, 2009
U37: Inquérito à Estrutura das Explorações Agrícolas 1993, 1995, 1997, 2003, 2005, 2007, 2013, 2016
A39: Nota: | B39: =+INDEX('Evolução Estrutura'!D126:D127,Sheet1!J38) -> O Nº de Explorações () passou de 550 879 em 1989 para 235 774 em 2016. A área de SAU de explorações 5 a 50 ha (ha) passou de 1 090 803 ha em 1989 para 798 835 ha em 2016.
D123: 1989 | E123: 1993 | F123: 1995 | G123: 1997 | H123: 1999 | I123: 2003 | J123: 2005 | K123: 2007 | L123: 2009 | M123: 2013 | N123: 2016
C124: =+INDEX(C129:C130,Sheet1!$J$38) & " (" & Sheet1!E38 & ")" -> Nº de Explorações () | D124: =+INDEX(D129:D130,Sheet1!$J$38) -> 550879 | E124: =+INDEX(E129:E130,Sheet1!$J$38) -> 446146 | F124: =+INDEX(F129:F130,Sheet1!$J$38) -> 412064 | G124: =+INDEX(G129:G130,Sheet1!$J$38) -> 381793 | H124: =+INDEX(H129:H130,Sheet1!$J$38) -> 382163 | I124: =+INDEX(I129:I130,Sheet1!$J$38) -> 330656 | J124: =+INDEX(J129:J130,Sheet1!$J$38) -> 297046 | K124: =+INDEX(K129:K130,Sheet1!$J$38) -> 251547 | L124: =+INDEX(L129:L130,Sheet1!$J$38) -> 278114 | M124: =+INDEX(M129:M130,Sheet1!$J$38) -> 240527 | N124: =+INDEX(N129:N130,Sheet1!$J$38) -> 235774
C125: =+INDEX(C131:C132,Sheet1!$J$38) & " (" & Sheet1!F38 & ")" -> SAU de explorações 5 a 50 ha (ha) | D125: =+INDEX(D131:D132,Sheet1!$J$38) -> 1090803 | E125: =+INDEX(E131:E132,Sheet1!$J$38) -> 1133878 | F125: =+INDEX(F131:F132,Sheet1!$J$38) -> 1126281 | G125: =+INDEX(G131:G132,Sheet1!$J$38) -> 1070249 | H125: =+INDEX(H131:H132,Sheet1!$J$38) -> 928258 | I125: =+INDEX(I131:I132,Sheet1!$J$38) -> 891107 | J125: =+INDEX(J131:J132,Sheet1!$J$38) -> 860460 | K125: =+INDEX(K131:K132,Sheet1!$J$38) -> 805855 | L125: =+INDEX(L131:L132,Sheet1!$J$38) -> 777505 | M125: =+INDEX(M131:M132,Sheet1!$J$38) -> 797420 | N125: =+INDEX(N131:N132,Sheet1!$J$38) -> 798835
D126: =+Sheet1!$M$38&" " &C124& " passou de " &+TEXT(D124,"### ### ###")& " " & Sheet1!$E$38& " em 1989 para " &+TEXT(N124,"### ### ###")& " " &Sheet1!$E$38& " em 2016. " & Sheet1!$O$38&" " &C125& " passou de " &+TEXT(D125,"### ### ###")& " " & Sheet1!$F$38& " em 1989 para " &+TEXT(N125,"### ### ###")& " " &Sheet1!$F$38& " em 2016." -> O Nº de Explorações () passou de 550 879 em 1989 para 235 774 em 2016. A área de SAU de explorações 5 a 50 ha (ha) passou de 1 090 803 ha em 1989 para 798 835 ha em 2016.
D127: =+Sheet1!$M$38&" " &C124& " em 2016 era " &+TEXT(N124,"### ### ###")& "% do valor de 1989. " & Sheet1!$O$38&" " &C125& " em 2016 era " &+TEXT(N125,"### ### ###")& "% do valor de 1989." -> O Nº de Explorações () em 2016 era 235 774% do valor de 1989. A área de SAU de explorações 5 a 50 ha (ha) em 2016 era 798 835% do valor de 1989.
D128: 1989 | E128: 1993 | F128: 1995 | G128: 1997 | H128: 1999 | I128: 2003 | J128: 2005 | K128: 2007 | L128: 2009 | M128: 2013 | N128: 2016
C129: =+Sheet1!C38 -> Nº de Explorações | D129: =+INDEX(Sheet1!D$41:D$93,Sheet1!$D$38) -> 550879 | E129: =+INDEX(Sheet1!E$41:E$93,Sheet1!$D$38) -> 446146 | F129: =+INDEX(Sheet1!F$41:F$93,Sheet1!$D$38) -> 412064 | G129: =+INDEX(Sheet1!G$41:G$93,Sheet1!$D$38) -> 381793 | H129: =+INDEX(Sheet1!H$41:H$93,Sheet1!$D$38) -> 382163 | I129: =+INDEX(Sheet1!I$41:I$93,Sheet1!$D$38) -> 330656 | J129: =+INDEX(Sheet1!J$41:J$93,Sheet1!$D$38) -> 297046 | K129: =+INDEX(Sheet1!K$41:K$93,Sheet1!$D$38) -> 251547 | L129: =+INDEX(Sheet1!L$41:L$93,Sheet1!$D$38) -> 278114 | M129: =+INDEX(Sheet1!M$41:M$93,Sheet1!$D$38) -> 240527 | N129: =+INDEX(Sheet1!N$41:N$93,Sheet1!$D$38) -> 235774
C130: =+C129 -> Nº de Explorações | D130: =+D129/$D129*100 -> 100 | E130: =+E129/$D129*100 -> 80.98802096 | F130: 74.80118138 | G130: 69.30614527 | H130: 69.37331065 | I130: 60.02334451 | J130: 53.92218618 | K130: 45.66284066 | L130: 50.48549682 | M130: 43.66240136 | N130: =+N129/$D129*100 -> 42.79959846
C131: =+Sheet1!G38 -> SAU de explorações 5 a 50 ha | D131: =+INDEX(Sheet1!D$41:D$93,Sheet1!$H$38) -> 1090803 | E131: =+INDEX(Sheet1!E$41:E$93,Sheet1!$H$38) -> 1133878 | F131: =+INDEX(Sheet1!F$41:F$93,Sheet1!$H$38) -> 1126281 | G131: =+INDEX(Sheet1!G$41:G$93,Sheet1!$H$38) -> 1070249 | H131: =+INDEX(Sheet1!H$41:H$93,Sheet1!$H$38) -> 928258 | I131: =+INDEX(Sheet1!I$41:I$93,Sheet1!$H$38) -> 891107 | J131: =+INDEX(Sheet1!J$41:J$93,Sheet1!$H$38) -> 860460 | K131: =+INDEX(Sheet1!K$41:K$93,Sheet1!$H$38) -> 805855 | L131: =+INDEX(Sheet1!L$41:L$93,Sheet1!$H$38) -> 777505 | M131: =+INDEX(Sheet1!M$41:M$93,Sheet1!$H$38) -> 797420 | N131: =+INDEX(Sheet1!N$41:N$93,Sheet1!$H$38) -> 798835
C132: =+C131 -> SAU de explorações 5 a 50 ha | D132: =+D131/$D131*100 -> 100 | E132: =+E131/$D131*100 -> 103.9489257 | F132: 103.2524663 | G132: 98.11570009 | H132: 85.0985925 | I132: 81.69275295 | J132: 78.88317139 | K132: 73.87722623 | L132: 71.27822347 | M132: 73.10394269 | N132: =+N131/$D131*100 -> 73.23366364
D134: 1989 | E134: 1993 | F134: 1995 | G134: 1997 | H134: 1999 | I134: 2003 | J134: 2005 | K134: 2007 | L134: 2009 | M134: 2013 | N134: 2016
E135: =+E129/$D129*100 -> 80.98802096 | F135: 74.80118138 | G135: 69.30614527 | H135: 69.37331065 | I135: 60.02334451 | J135: 53.92218618 | K135: 45.66284066 | L135: 50.48549682 | M135: 43.66240136 | N135: =+N129/$D129*100 -> 42.79959846
E136: =+E131/$D131*100 -> 103.9489257 | F136: 103.2524663 | G136: 98.11570009 | H136: 85.0985925 | I136: 81.69275295 | J136: 78.88317139 | K136: 73.87722623 | L136: 71.27822347 | M136: 73.10394269 | N136: =+N131/$D131*100 -> 73.23366364

Sheet Sheet1 (hidden)
D1: 1 | E1: =+F1-1 -> 1 | F1: 2 | H1: 1 | I1: =+J1-1 -> 2 | J1: 3
D2: =+INDEX($Q$3:$Q$6,D1) -> Nº de Explorações | E2: =+INDEX($V$3:$V$10,F1) -> Entre Douro e Minho | H2: =+INDEX($Q$3:$Q$6,H1) -> Nº de Explorações | I2: =+INDEX($V$3:$V$10,J1) -> Trás-os-Montes
B3: EXPLORAÇÕES (nº) | D3: 1989 | E3: 1993 | F3: 1995 | G3: 1997 | H3: 1999 | I3: 2003 | J3: 2005 | K3: 2007 | L3: 2009 | M3: 2013 | N3: 2016 | Q3: Nº de Explorações | U3: 0 | V3: Continente
B4: 1 | C4: 0 | D4: 550879 | E4: 446146 | F4: 412064 | G4: 381793 | H4: 382163 | I4: 330656 | J4: 297046 | K4: 251547 | L4: 278114 | M4: 240527 | N4: 235774 | O4: =+B4&C4 -> 10 | Q4: Superfície Agrícola Útil (Ha) | U4: 1 | V4: Entre Douro e Minho
B5: 1 | C5: 1 | D5: 111505 | E5: 86967 | F5: 79916 | G5: 73048 | H5: 67546 | I5: 58757 | J5: 52696 | K5: 45848 | L5: 49037 | M5: 41601 | N5: 39651 | O5: =+B5&C5 -> 11 | Q5: Volume de Trabalho (UTA) | U5: 2 | V5: Trás-os-Montes
B6: 1 | C6: 2 | D6: 80551 | E6: 75678 | F6: 72248 | G6: 70098 | H6: 70006 | I6: 64963 | J6: 61649 | K6: 56339 | L6: 61804 | M6: 57224 | N6: 56228 | O6: 12 | Q6: População agrícola (Pessoas) | U6: 3 | V6: Beira Litoral
B7: 1 | C7: 3 | D7: 125307 | E7: 97459 | F7: 88547 | G7: 80217 | H7: 79806 | I7: 66060 | J7: 58823 | K7: 47542 | L7: 49424 | M7: 38356 | N7: 39462 | O7: 13 | U7: 4 | V7: Beira Interior
B8: 1 | C8: 4 | D8: 60386 | E8: 49533 | F8: 45878 | G8: 42841 | H8: 48313 | I8: 40788 | J8: 35749 | K8: 30357 | L8: 33763 | M8: 30862 | N8: 29065 | O8: 14 | U8: 5 | V8: Ribatejo e Oeste
B9: 1 | C9: 5 | D9: 99938 | E9: 78609 | F9: 71430 | G9: 64874 | H9: 61615 | I9: 52375 | J9: 43850 | K9: 33225 | L9: 39875 | M9: 31450 | N9: 31217 | O9: 15 | U9: 6 | V9: Alentejo
B10: 1 | C10: 6 | D10: 47049 | E10: 37491 | F10: 36114 | G10: 34722 | H10: 35906 | I10: 31830 | J10: 29558 | K10: 26032 | L10: 31828 | M10: 29478 | N10: 28424 | O10: 16 | U10: 7 | V10: Algarve
B11: 1 | C11: 7 | D11: 26143 | E11: 20409 | F11: 17931 | G11: 15993 | H11: 18971 | I11: 15883 | J11: 14721 | K11: 12204 | L11: 12383 | M11: 11556 | N11: 11728 | O11: 17 | Q11: Valor Absoluto
B12: 2 | C12: 0 | D12: 3879579 | E12: 3821319 | F12: 3800379 | G12: 3700161 | H12: 3736140 | I12: 3578034 | J12: 3552347 | K12: 3357019 | L12: 3542305 | M12: 3517740 | N12: 3513006 | O12: 20 | Q12: Índice 100 (IND100=1989)
B13: 2 | C13: 1 | D13: 289624 | E13: 257684 | F13: 239465 | G13: 243450 | H13: 215675 | I13: 233702 | J13: 232260 | K13: 220371 | L13: 211154 | M13: 214554 | N13: 198415 | O13: 21
B14: 2 | C14: 2 | D14: 489133 | E14: 493229 | F14: 495965 | G14: 462230 | H14: 457881 | I14: 467158 | J14: 473530 | K14: 474617 | L14: 432873 | M14: 432056 | N14: 454719 | O14: 22
B15: 2 | C15: 3 | D15: 231458 | E15: 220532 | F15: 205702 | G15: 179896 | H15: 169779 | I15: 154781 | J15: 151949 | K15: 135986 | L15: 125436 | M15: 117387 | N15: 122929 | O15: 23
B16: 2 | C16: 4 | D16: 433947 | E16: 443745 | F16: 441138 | G16: 435052 | H16: 418977 | I16: 390252 | J16: 384005 | K16: 352257 | L16: 337031 | M16: 341976 | N16: 356488 | O16: 24
B17: 2 | C17: 5 | D17: 456544 | E17: 498887 | F17: 483831 | G17: 494427 | H17: 447853 | I17: 381558 | J17: 412093 | K17: 349237 | L17: 391006 | M17: 370390 | N17: 378010 | O17: 25
B18: 2 | C18: 6 | D18: 1842094 | E18: 1766678 | F18: 1800535 | G18: 1757360 | H18: 1924043 | I18: 1836215 | J18: 1792285 | K18: 1721795 | L18: 1956508 | M18: 1949142 | N18: 1906874 | O18: 26
B19: 2 | C19: 7 | D19: 136779 | E19: 140565 | F19: 133743 | G19: 127745 | H19: 101932 | I19: 114368 | J19: 106225 | K19: 102756 | L19: 88297 | M19: 92234 | N19: 95570 | O19: 27
B20: 3 | C20: 0 | D20: 810005 | E20: 576661 | F20: 551197 | G20: 492999 | H20: 497537 | I20: 431521 | J20: 376370 | K20: 319369 | L20: 341502 | M20: 304677 | N20: 295316 | O20: 30
B21: 3 | C21: 1 | D21: 218450 | E21: 153824 | F21: 150023 | G21: 127545 | H21: 122487 | I21: 103124 | J21: 88050 | K21: 74273 | L21: 78758 | M21: 68404 | N21: 58000 | O21: 31
B22: 3 | C22: 2 | D22: 99162 | E22: 81023 | F22: 81412 | G22: 73226 | H22: 81566 | I22: 77400 | J22: 67260 | K22: 65072 | L22: 69330 | M22: 68998 | N22: 71193 | O22: 32
B23: 3 | C23: 3 | D23: 188075 | E23: 127288 | F23: 121948 | G23: 105164 | H23: 107553 | I23: 88993 | J23: 79738 | K23: 59518 | L23: 65502 | M23: 48669 | N23: 46289 | O23: 33
B24: 3 | C24: 4 | D24: 85447 | E24: 52671 | F24: 47625 | G24: 46443 | H24: 49193 | I24: 44165 | J24: 42588 | K24: 33624 | L24: 33552 | M24: 30355 | N24: 26215 | O24: 34
B25: 3 | C25: 5 | D25: 126898 | E25: 93835 | F25: 89504 | G25: 83768 | H25: 75630 | I25: 63629 | J25: 50047 | K25: 42447 | L25: 47269 | M25: 40832 | N25: 38663 | O25: 35
B26: 3 | C26: 6 | D26: 61913 | E26: 48043 | F26: 43524 | G26: 42942 | H26: 44162 | I26: 40862 | J26: 35491 | K26: 32918 | L26: 35659 | M26: 35617 | N26: 41838 | O26: 36
B27: 3 | C27: 7 | D27: 30061 | E27: 19976 | F27: 17161 | G27: 13911 | H27: 16946 | I27: 13348 | J27: 13197 | K27: 11515 | L27: 11432 | M27: 11801 | N27: 13117 | O27: 37
B28: 4 | C28: 0 | D28: 1799736 | E28: 1408613 | F28: 1261088 | G28: 1133401 | H28: 1123418 | I28: 935316 | J28: 787102 | K28: 656296 | L28: 709928 | M28: 604926 | N28: 564670 | O28: 40
B29: 4 | C29: 1 | D29: 466783 | E29: 345726 | F29: 306268 | G29: 274338 | H29: 248443 | I29: 203845 | J29: 175226 | K29: 145511 | L29: 150588 | M29: 124339 | N29: 110068 | O29: 41
B30: 4 | C30: 2 | D30: 255688 | E30: 227653 | F30: 212261 | G30: 198007 | H30: 196960 | I30: 174969 | J30: 155729 | K30: 138630 | L30: 151529 | M30: 138731 | N30: 132411 | O30: 42
B31: 4 | C31: 3 | D31: 426328 | E31: 325453 | F31: 286032 | G31: 251190 | H31: 246329 | I31: 197024 | J31: 168002 | K31: 133515 | L31: 134174 | M31: 106486 | N31: 103862 | O31: 43
B32: 4 | C32: 4 | D32: 163719 | E32: 129743 | F32: 118858 | G32: 109048 | H32: 121920 | I32: 101031 | J32: 83230 | K32: 68638 | L32: 78470 | M32: 73147 | N32: 65889 | O32: 44
B33: 4 | C33: 5 | D33: 295495 | E33: 229219 | F33: 202173 | G33: 176355 | H33: 170116 | I33: 140110 | J33: 106022 | K33: 84673 | L33: 96111 | M33: 76290 | N33: 70309 | O33: 45
B34: 4 | C34: 6 | D34: 121804 | E34: 95794 | F34: 88222 | G34: 83601 | H34: 91678 | I34: 79884 | J34: 65591 | K34: 57425 | L34: 69849 | M34: 61473 | N34: 56795 | O34: 46
B35: 4 | C35: 7 | D35: 69919 | E35: 55025 | F35: 47274 | G35: 40861 | H35: 47972 | I35: 38453 | J35: 33302 | K35: 27904 | L35: 29207 | M35: 24460 | N35: 25336 | O35: 47
C38: =+INDEX($C$41:$C$93,D38) -> Nº de Explorações | D38: 1 | E38: =+INDEX(B41:B93,D38) ->  | F38: =+INDEX(B41:B93,H38) -> ha | G38: =+INDEX($C$41:$C$93,H38) -> SAU de explorações 5 a 50 ha | H38: 11 | I38: =+INDEX(Q11:Q12,J38) -> Valor Absoluto | J38: 1 | M38: =+INDEX($O$41:$O$93,D38) -> O | O38: =+INDEX($O$41:$O$93,H38) -> A área de
D40: 1989 | E40: 1993 | F40: 1995 | G40: 1997 | H40: 1999 | I40: 2003 | J40: 2005 | K40: 2007 | L40: 2009 | M40: 2013 | N40: 2016
C41: Nº de Explorações | D41: 550879 | E41: 446146 | F41: 412064 | G41: 381793 | H41: 382163 | I41: 330656 | J41: 297046 | K41: 251547 | L41: 278114 | M41: 240527 | N41: 235774 | O41: O | P41: Unidade técnico-económica que utiliza fatores de produção comuns, tais como: mão de obra, máquinas, instalações, terrenos, entre outros, e que deve satisfazer obrigatoriamente as quatro condições seguintes: 1. produzir produtos agrícolas ou manter em boas condições agrícolas e ambientais as terras que já não são utilizadas para fins produtivos; 2. atingir ou ultrapassar uma certa dimensão (área, número de animais); 3. estar submetida a uma gestão única; 4. estar localizada num local bem determinado e identificável.
C42: Nº de Explorações > 0 a <5 ha | D42: 446184 | E42: 343780 | F42: 311525 | G42: 286550 | H42: 296010 | I42: 249826 | J42: 218948 | K42: 179656 | L42: 207062 | M42: 170929 | N42: 165331 | O42: O | P42: Unidade técnico-económica que utiliza fatores de produção comuns, tais como: mão de obra, máquinas, instalações, terrenos, entre outros, e que deve satisfazer obrigatoriamente as quatro condições seguintes: 1. produzir produtos agrícolas ou manter em boas condições agrícolas e ambientais as terras que já não são utilizadas para fins produtivos; 2. atingir ou ultrapassar uma certa dimensão (área, número de animais); 3. estar submetida a uma gestão única; 4. estar localizada num local bem determinado e identificável.
C43: Nº de Explorações 5 a 50 ha | D43: 91424 | E43: 91810 | F43: 89783 | G43: 84931 | H43: 73258 | I43: 69253 | J43: 66865 | K43: 61534 | L43: 59667 | M43: 58536 | N43: 58861 | O43: O | P43: Unidade técnico-económica que utiliza fatores de produção comuns, tais como: mão de obra, máquinas, instalações, terrenos, entre outros, e que deve satisfazer obrigatoriamente as quatro condições seguintes: 1. produzir produtos agrícolas ou manter em boas condições agrícolas e ambientais as terras que já não são utilizadas para fins produtivos; 2. atingir ou ultrapassar uma certa dimensão (área, número de animais); 3. estar submetida a uma gestão única; 4. estar localizada num local bem determinado e identificável.
C44: Nº de Explorações > 50 ha | D44: 9050 | E44: 9287 | F44: 9601 | G44: 9340 | H44: 9612 | I44: 9393 | J44: 9971 | K44: 9485 | L44: 10047 | M44: 10249 | N44: 10395 | O44: O | P44: Unidade técnico-económica que utiliza fatores de produção comuns, tais como: mão de obra, máquinas, instalações, terrenos, entre outros, e que deve satisfazer obrigatoriamente as quatro condições seguintes: 1. produzir produtos agrícolas ou manter em boas condições agrícolas e ambientais as terras que já não são utilizadas para fins produtivos; 2. atingir ou ultrapassar uma certa dimensão (área, número de animais); 3. estar submetida a uma gestão única; 4. estar localizada num local bem determinado e identificável.
B45: ha | C45: Superfície Total Das Explorações | D45: 5157213 | E45: 4999731 | F45: 4929405 | G45: 4800054 | H45: 5039569 | I45: 4719438 | J45: 4632024 | K45: 4272503 | L45: 4571531 | M45: 4492242 | N45: 4515890 | O45: A área de | P45: Soma da superfície agrícola utilizada, da superfície das matas e florestas sem culturas sob-coberto, da superfície agrícola não utilizada e das outras superfícies da exploração.
B46: ha | C46: Superfície agrícola utilizada | D46: 3879579 | E46: 3821319 | F46: 3800379 | G46: 3700161 | H46: 3736140 | I46: 3578034 | J46: 3552347 | K46: 3357019 | L46: 3542305 | M46: 3517740 | N46: 3513006 | O46: A área de | P46: Superfície da exploração que inclui: terras aráveis (limpa e sob-coberto de matas e florestas), horta familiar, culturas permanentes e pastagens permanentes.
B47: ha | C47: Superfície de Matas e florestas sem culturas sob-coberto | D47: 965676 | E47: 867336 | F47: 803967 | G47: 801053 | H47: 997497 | I47: 878078 | J47: 838801 | K47: 707750 | L47: 837431 | M47: 800482 | N47: 822722 | O47: A área de | P47: Superfícies cobertas com árvores ou arbustos florestais, incluindo choupais, quer se trate de povoamentos puros (com uma só espécie), quer de povoamentos mistos (com espécies diversas) bem como os viveiros florestais localizados no interior das florestas e que se destinam às necessidades da exploração.
B48: ha | C48: Superfície agrícola não utilizada | D48: 243534 | E48: 215329 | F48: 218610 | G48: 208216 | H48: 201084 | I48: 180743 | J48: 158346 | K48: 134587 | L48: 125283 | M48: 99394 | N48: 96491 | O48: A área de | P48: Superfície da exploração anteriormente utilizada como superfície agrícola, mas que já o não é por razões económicas, sociais ou outras. Não entra em rotações culturais. Pode voltar a ser utilizada com auxílio dos meios geralmente disponíveis na exploração.
B49: ha | C49: Outras superfícies | D49: 68425 | E49: 95747 | F49: 106448 | G49: 90624 | H49: 104848 | I49: 82584 | J49: 82531 | K49: 73146 | L49: 66512 | M49: 74626 | N49: 83671 | O49: A área de | P49: Áreas ocupadas por edifícios, eiras, pátios, caminhos, barragens, albufeiras e ainda jardins, matas e florestas orientadas exclusivamente para fins de proteção do ambiente ou de recreio.
B50: ha | C50: SAU de explorações <5 ha | D50: 731458 | E50: 625118 | F50: 574760 | G50: 527529 | H50: 513791 | I50: 463738 | J50: 401651 | K50: 335945 | L50: 382341 | M50: 325926 | N50: 318159 | O50: A área de | P50: Superfície da exploração que inclui: terras aráveis (limpa e sob-coberto de matas e florestas), horta familiar, culturas permanentes e pastagens permanentes.
B51: ha | C51: SAU de explorações 5 a 50 ha | D51: 1090803 | E51: 1133878 | F51: 1126281 | G51: 1070249 | H51: 928258 | I51: 891107 | J51: 860460 | K51: 805855 | L51: 777505 | M51: 797420 | N51: 798835 | O51: A área de | P51: Superfície da exploração que inclui: terras aráveis (limpa e sob-coberto de matas e florestas), horta familiar, culturas permanentes e pastagens permanentes.
B52: ha | C52: SAU de explorações > 50 ha | D52: 2057316 | E52: 2062323 | F52: 2099337 | G52: 2102382 | H52: 2294091 | I52: 2223188 | J52: 2290236 | K52: 2215219 | L52: 2382459 | M52: 2394395 | N52: 2396012 | O52: A área de | P52: Superfície da exploração que inclui: terras aráveis (limpa e sob-coberto de matas e florestas), horta familiar, culturas permanentes e pastagens permanentes.
B53: ha | C53: Terras aráveis | D53: 2330327 | E53: 2258395 | F53: 2111584 | G53: 2082578 | H53: 1725887 | I53: 1513900 | J53: 1228939 | K53: 1066583 | L53: 1158805 | M53: 1081311 | N53: 1019186 | O53: A área de | P53: Terras cultivadas destinadas à produção vegetal, as terras retiradas da produção, ou que sejam mantidas em boas condições agrícolas e ambientais nos termos do artigo 5º do Regulamento (CE) n.º 1782/2003, e as terras ocupadas por estufas ou cobertas por estruturas fixas ou móveis.
B54: ha | C54: Horta familiar | D54: 31765 | E54: 29826 | F54: 27176 | G54: 25574 | H54: 20965 | I54: 19274 | J54: 20712 | K54: 17830 | L54: 18991 | M54: 14473 | N54: 15690 | O54: A área de | P54: Superfície normalmente inferior a 20 ares, reservada à cultura de produtos tais como hortícolas, frutos e flores destinados fundamentalmente ao autoconsumo e não para venda.
B55: ha | C55: Culturas permanentes | D55: 780966 | E55: 748594 | F55: 739153 | G55: 700068 | H55: 705232 | I55: 676598 | J55: 643520 | K55: 592393 | L55: 686221 | M55: 704302 | N55: 700353 | O55: A área de | P55: Culturas que ocupam a terra durante um longo período e fornecem repetidas colheitas, não entrando em rotações culturais. Não incluem os prados e pastagens permanentes. No caso das árvores de fruto só são considerados os povoamentos regulares, com densidade mínima de 100 árvores, ou de 45 no caso de oliveiras, figueiras e frutos secos.
B56: ha | C56: Pastagens permanentes | D56: 736521 | E56: 784504 | F56: 922465 | G56: 891940 | H56: 1284056 | I56: 1368262 | J56: 1659175 | K56: 1680214 | L56: 1678288 | M56: 1717653 | N56: 1777776 | O56: A área de | P56: Plantas semeadas ou espontâneas, em geral herbáceas, destinadas a serem comidas pelo gado no local em que vegetam, mas que acessoriamente podem ser cortadas em determinados períodos do ano. Não estão incluídas numa rotação e ocupam o solo por um período superior a 5 anos.
B57: ha | C57: Cultura temporárias - Total | D57: 1869929 | E57: 1667685 | F57: 1600085 | G57: 1483750 | H57: 1378415 | I57: 1177310 | J57: 992324 | K57: 859525 | L57: 923537 | M57: 840993 | N57: 853885 | O57: A área de | P57: Culturas cujo ciclo vegetativo não excede um ano (as anuais) e também as que são ressemeadas com intervalos que não excedem cinco anos (morangos, espargos, prados temporários, etc.).
B58: ha | C58: Cultura temporárias - Cereais para grão | D58: 896507 | E58: 702538 | F58: 675457 | G58: 649423 | H58: 601003 | I58: 479372 | J58: 383912 | K58: 303307 | L58: 345556 | M58: 305390 | N58: 254957 | O58: A área de | P58: Cereais semeados com a intenção de obter grão após maturação completa, independentemente do destino da cultura.
B59: ha | C59: Cultura temporárias - Leguminosas secas para grão | D59: 80711 | E59: 41902 | F59: 38484 | G59: 28508 | H59: 25246 | I59: 21684 | J59: 13858 | K59: 15467 | L59: 13152 | M59: 9257 | N59: 18043 | O59: A área de | P59: Leguminosas cultivadas para colheita do grão após maturação completa, quer se destinem à alimentação humana ou à alimentação animal.
B60: ha | C60: Cultura temporárias - Prados temporários | D60: 73865 | E60: 47210 | F60: 45348 | G60: 43112 | H60: 37246 | I60: 45280 | J60: 49219 | K60: 64718 | L60: 31652 | M60: 35532 | N60: 91874 | O60: A área de | P60: Plantas herbáceas semeadas, destinadas a serem comidas pelo gado no local onde vegetam, integradas numa rotação, ocupando o solo por um período geralmente não superior a 5 anos. Acessoriamente podem ser cortados em determinados períodos do ano.
B61: ha | C61: Cultura temporárias - Culturas forrageiras | D61: 565460 | E61: 641601 | F61: 623571 | G61: 589063 | H61: 528049 | I61: 487696 | J61: 466300 | K61: 389993 | L61: 442320 | M61: 414201 | N61: 406626 | O61: A área de | P61: Culturas destinadas ao corte para dar ao gado e que são colhidas antes de completarem o seu ciclo vegetativo (maturação), de modo a serem melhor digeridas pelos animais. Podem ser consumidas pelo gado em verde, depois de conservadas como feno ou silagem ou secas ao Sol ou desidratadas artificialmente.
B62: ha | C62: Cultura temporárias - Batata | D62: 103652 | E62: 81496 | F62: 77462 | G62: 55454 | H62: 47313 | I62: 36561 | J62: 24356 | K62: 20685 | L62: 17331 | M62: 11879 | N62: 10953 | O62: A área de
B63: ha | C63: Cultura temporárias - Beterraba sacarina | D63: 39 | E63: 0 | F63: 0 | G63: 0 | H63: 7551 | I63: 5115 | J63: 7012 | K63: 2108 | L63: 0 | M63: 0 | O63: A área de
B64: ha | C64: Cultura temporárias - Culturas industriais | D64: 63960 | E64: 83433 | F64: 76965 | G64: 57082 | H64: 74400 | I64: 50964 | J64: 8880 | K64: 17473 | L64: 24764 | M64: 19007 | N64: 19837 | O64: A área de | P64: Culturas que se destinam a transformação industrial tais como o tabaco, lúpulo, colza, girassol, soja, plantas aromáticas e cana-de-açúcar entre outras. Não inclui o tomate para a indústria.
B65: ha | C65: Cultura temporárias - Culturas hortícolas | D65: 61709 | E65: 51305 | F65: 54492 | G65: 50161 | H65: 49708 | I65: 42286 | J65: 36000 | K65: 37519 | L65: 46367 | M65: 41205 | N65: 47268 | O65: A área de | P65: Culturas hortícolas
B66: ha | C66: Cultura temporárias - Flores e plantas ornamentais | D66: 633 | E66: 841 | F66: 813 | G66: 1077 | H66: 1004 | I66: 1195 | J66: 1375 | K66: 1614 | L66: 1525 | M66: 2588 | N66: 1265 | O66: A área de | P66: Espécies florícolas e outras plantas ornamentais, quer sejam de interior quer de exterior, independentemente de serem ou não utilizadas para a produção de flor ou de folhagem de corte.
B67: ha | C67: Cultura temporárias - Outras culturas temporárias | D67: 23393 | E67: 17358 | F67: 7491 | G67: 9870 | H67: 6889 | I67: 7157 | J67: 1413 | K67: 6641 | L67: 870 | M67: 1934 | N67: 3063 | O67: A área de
B68: ha | C68: Pousio | D68: 830303 | E68: 921836 | F68: 809120 | G68: 858969 | H68: 562646 | I68: 517973 | J68: 373654 | K68: 325044 | L68: 341465 | M68: 333031 | N68: 251744 | O68: A área de | P68: Terras incluídas no afolhamento ou rotação, trabalhadas ou não, não fornecendo colheitas durante toda a campanha, tendo em vista o seu melhoramento. Podem apresentar-se sob as formas de: a) terras sem qualquer cultura; b) terras com uma vegetação espontânea, em certos casos utilizada pelos animais ou enterrada; c) terras semeadas tendo em vista a exclusiva produção de matéria verde para ser enterrada e aumentar a fertilidade do solo.
B69: ha | C69: Culturas Permanentes - Total | D69: 780966 | E69: 748595 | F69: 739153 | G69: 700067 | H69: 705232 | I69: 676599 | J69: 643519 | K69: 592392 | L69: 686221 | M69: 704303 | N69: 700351 | O69: A área de | P69: Culturas que ocupam a terra durante um longo período e fornecem repetidas colheitas, não entrando em rotações culturais. Não incluem os prados e pastagens permanentes. No caso das árvores de fruto só são considerados os povoamentos regulares, com densidade mínima de 100 árvores, ou de 45 no caso de oliveiras, figueiras e frutos secos.
B70: ha | C70: Culturas Permanentes - Frutos frescos (excepto citrinos) | D70: 75715 | E70: 76218 | F70: 70493 | G70: 62439 | H70: 52342 | I70: 46465 | J70: 40230 | K70: 36800 | L70: 39746 | M70: 42667 | N70: 46515 | O70: A área de
B71: ha | C71: Culturas Permanentes - Citrinos | D71: 25598 | E71: 25089 | F71: 23890 | G71: 23557 | H71: 22428 | I71: 19802 | J71: 19101 | K71: 18083 | L71: 16389 | M71: 17424 | N71: 17709 | O71: A área de
B72: ha | C72: Culturas Permanentes - Frutos sub-tropicais | D72: 1042 | E72: 1297 | F72: 1122 | G72: 1094 | H72: 1197 | I72: 1038 | J72: 1390 | K72: 1469 | L72: 1764 | M72: 2412 | N72: 3525 | O72: A área de
B73: ha | C73: Culturas Permanentes - Frutos de casca rija | D73: 73738 | E73: 69964 | F73: 71345 | G73: 74698 | H73: 80281 | I73: 72820 | J73: 70951 | K73: 68877 | L73: 114980 | M73: 139750 | N73: 142523 | O73: A área de
B74: ha | C74: Culturas Permanentes - Olival | D74: 340514 | E74: 321675 | F74: 330337 | G74: 308731 | H74: 335028 | I74: 324061 | J74: 317046 | K74: 292162 | L74: 335841 | M74: 340284 | N74: 325755 | O74: A área de
B75: ha | C75: Culturas Permanentes - Vinha | D75: 262025 | E75: 252015 | F75: 239722 | G75: 227375 | H75: 211821 | I75: 210314 | J75: 192846 | K75: 172765 | L75: 175773 | M75: 160424 | N75: 160674 | O75: A área de
B76: ha | C76: Culturas Permanentes - Outras culturas permanentes | D76: 2334 | E76: 2337 | F76: 2244 | G76: 2173 | H76: 2135 | I76: 2099 | J76: 1955 | K76: 2236 | L76: 1728 | M76: 1342 | N76: 3650 | O76: A área de
B77: ha | C77: Prados E Pastagens Permanentes | D77: 754825 | E77: 808586 | F77: 950879 | G77: 919058 | H77: 1331033 | I77: 1419417 | J77: 1706263 | K77: 1723221 | L77: 1721587 | M77: 1773304 | N77: 1828714 | O77: A área de | P77: Plantas semeadas ou espontâneas, em geral herbáceas, destinadas a serem comidas pelo gado no local em que vegetam, mas que acessoriamente podem ser cortadas em determinados períodos do ano. Não estão incluídas numa rotação e ocupam o solo por um período superior a 5 anos.
B78: UTA | C78: Volume De Trabalho | D78: 810005 | E78: 576661 | F78: 551197 | G78: 492999 | H78: 497537 | I78: 431521 | J78: 376370 | K78: 319369 | L78: 341502 | M78: 304677 | N78: 295316 | O78: O | P78: Corresponde ao trabalho efetivamente aplicado na produção de produtos agrícolas e das atividades não agrícolas não separáveis das unidades agrícolas que compõem o Ramo. Por definição, pode ser dividido em Assalariado e Não - assalariado, e é expresso em unidades de trabalho ano (UTA), correspondendo estas à prestação, medida em tempo de trabalho, de uma pessoa que efetua, a tempo inteiro e durante todo o ano, atividades agrícolas numa unidade agrícola.
B79: UTA | C79: Tipo de Mão-de-Obra - Agrícola familiar | D79: 687485 | E79: 484712 | F79: 460220 | G79: 406351 | H79: 408224 | I79: 352376 | J79: 309759 | K79: 260110 | L79: 272783 | M79: 230012 | N79: 212771 | O79: O Volume de trabalho de | P79: Pessoas pertencentes ao agregado doméstico do produtor que trabalham na exploração, bem como os membros da família do produtor que não pertencendo ao seu agregado doméstico trabalham regularmente na exploração.
B80: UTA | C80: Tipo de Mão-de-Obra - Produtor | D80: 311206 | E80: 231524 | F80: 221960 | G80: 200648 | H80: 206241 | I80: 180870 | J80: 163899 | K80: 138618 | L80: 147342 | M80: 123072 | N80: 116335 | O80: O Volume de trabalho de | P80: Responsável jurídico e económico da exploração, isto é, a pessoa física ou moral por conta e em nome da qual a exploração produz, retira os benefícios e suporta as perdas eventuais, tomando as decisões de fundo relativas ao sistema de produção, investimentos, empréstimos, etc.
B81: UTA | C81: Tipo de Mão-de-Obra - Agrícola não familiar - Total | D81: 122520 | E81: 91948 | F81: 90977 | G81: 86647 | H81: 89313 | I81: 79145 | J81: 66611 | K81: 59258 | L81: 68718 | M81: 74664 | N81: 82545 | O81: O Volume de trabalho de | P81: Pessoas remuneradas pela exploração e ocupadas nos trabalhos agrícolas da exploração que não sejam nem o produtor nem membros da sua família.
B82: UTA | C82: Tipo de Mão-de-Obra - Agrícola não familiar - Permanente | D82: 58932 | E82: 46524 | F82: 44232 | G82: 41976 | H82: 43962 | I82: 40758 | J82: 38402 | K82: 35820 | L82: 38960 | M82: 46010 | N82: 52488 | O82: O Volume de trabalho de | P82: Pessoas remuneradas pela exploração e ocupadas nos trabalhos agrícolas da exploração que não sejam nem o produtor nem membros da sua família.
B83: UTA | C83: Tipo de Mão-de-Obra - Agrícola não familiar - Eventual | D83: 60565 | E83: 43112 | F83: 44590 | G83: 42655 | H83: 42525 | I83: 35967 | J83: 26351 | K83: 21677 | L83: 26000 | M83: 23795 | N83: 26093 | O83: O Volume de trabalho de | P83: Pessoas remuneradas pela exploração e ocupadas nos trabalhos agrícolas da exploração que não sejam nem o produtor nem membros da sua família.
B84: Nº de Pessoas | C84: População Agrícola (Nº) | D84: 1799736 | E84: 1408613 | F84: 1261088 | G84: 1133401 | H84: 1123418 | I84: 935316 | J84: 787102 | K84: 656296 | L84: 709928 | M84: 604926 | N84: 564670 | O84: A | P84: Conjunto de pessoas que fazem parte do agregado doméstico do produtor (singular) quer trabalhem ou não na exploração, bem como de outros membros da família que não pertencendo ao agregado doméstico, participam regularmente nos trabalhos agrícolas da exploração.
B85: Nº de Pessoas | C85: Produtores Agrícolas (Nº) - Homem | D85: 462535 | E85: 368061 | F85: 335627 | G85: 306245 | H85: 289291 | I85: 248858 | J85: 216600 | K85: 180885 | L85: 186194 | M85: 156995 | N85: 147962 | O85: OS | P85: Conjunto de pessoas que fazem parte do agregado doméstico do produtor (singular) quer trabalhem ou não na exploração, bem como de outros membros da família que não pertencendo ao agregado doméstico, participam regularmente nos trabalhos agrícolas da exploração.
B86: Nº de Pessoas | C86: Produtores Agrícolas (Nº) - Mulher | D86: 83534 | E86: 73350 | F86: 71413 | G86: 70052 | H86: 86647 | I86: 75665 | J86: 73896 | K86: 64395 | L86: 84313 | M86: 72973 | N86: 75543 | O86: OS | P86: Conjunto de pessoas que fazem parte do agregado doméstico do produtor (singular) quer trabalhem ou não na exploração, bem como de outros membros da família que não pertencendo ao agregado doméstico, participam regularmente nos trabalhos agrícolas da exploração.
B87: Nº de Pessoas | C87: Produtores Agrícolas (Nº) - 15 a 44 anos | D87: 107122 | E87: 72074 | F87: 62146 | G87: 51852 | H87: 55538 | I87: 35871 | J87: 29417 | K87: 21858 | L87: 24403 | M87: 17842 | N87: 14914 | O87: OS | P87: Conjunto de pessoas que fazem parte do agregado doméstico do produtor (singular) quer trabalhem ou não na exploração, bem como de outros membros da família que não pertencendo ao agregado doméstico, participam regularmente nos trabalhos agrícolas da exploração.
B88: Nº de Pessoas | C88: Produtores Agrícolas (Nº) - 45 a 64 anos | D88: 282161 | E88: 222105 | F88: 201020 | G88: 181582 | H88: 176575 | I88: 134653 | J88: 120906 | K88: 102461 | L88: 112932 | M88: 88447 | N88: 83576 | O88: OS | P88: Conjunto de pessoas que fazem parte do agregado doméstico do produtor (singular) quer trabalhem ou não na exploração, bem como de outros membros da família que não pertencendo ao agregado doméstico, participam regularmente nos trabalhos agrícolas da exploração.
B89: Nº de Pessoas | C89: Produtores Agrícolas (Nº) - 65 e mais anos | D89: 156786 | E89: 147232 | F89: 143874 | G89: 142863 | H89: 143825 | I89: 154000 | J89: 140172 | K89: 120960 | L89: 133172 | M89: 123680 | N89: 125015 | O89: OS | P89: Conjunto de pessoas que fazem parte do agregado doméstico do produtor (singular) quer trabalhem ou não na exploração, bem como de outros membros da família que não pertencendo ao agregado doméstico, participam regularmente nos trabalhos agrícolas da exploração.
B90: Nº de Pessoas | C90: Produtores Agrícolas - Escolaridade - Nenhum | D90: 255187 | E90: 190085 | F90: 165348 | G90: 146863 | H90: 129360 | I90: 105666 | J90: 84731 | K90: 61900 | L90: 60040 | M90: 43102 | N90: 36127 | O90: OS
B91: Nº de Pessoas | C91: Produtores Agrícolas - Escolaridade - Básico | D91: 268772 | E91: 231253 | F91: 228016 | G91: 215583 | H91: 228474 | I91: 201224 | J91: 188739 | K91: 168350 | L91: 186768 | M91: 159711 | N91: 158991 | O91: OS
B92: Nº de Pessoas | C92: Produtores Agrícolas - Escolaridade - Secundário/Pós-secundário | D92: 16041 | E92: 13567 | F92: 6143 | G92: 6635 | H92: 8230 | I92: 7980 | J92: 7338 | K92: 6476 | L92: 11361 | M92: 13784 | N92: 14755 | O92: OS
B93: Nº de Pessoas | C93: Produtores Agrícolas - Escolaridade - Superior | D93: 6069 | E93: 6507 | F93: 7533 | G93: 7216 | H93: 9874 | I93: 9653 | J93: 9687 | K93: 8554 | L93: 12338 | M93: 13372 | N93: 13633 | O93: OS

Sheet Evolução regional (hidden)
B1: Evolução Estrutural Regional das Explorações Agrícolas
B3: Escolha variável e região 1 | I3: Escolha variável e região 2
B7: =+"Evolução comparativa em valor absoluto" -> Evolução comparativa em valor absoluto
B30: =+"Evolução comparativa em Índice (IND100=1989)" -> Evolução comparativa em Índice (IND100=1989)
S47: Fonte
T49: Recenseamento Agrícola 1989, 1999, 2009
T50: Inquérito à Estrutura das Explorações Agrícolas 1993, 1995, 1997, 2003, 2005, 2007, 2013, 2016
D98: 1989 | E98: 1993 | F98: 1995 | G98: 1997 | H98: 1999 | I98: 2003 | J98: 2005 | K98: 2007 | L98: 2009 | M98: 2013 | N98: 2016
C99: =+Sheet1!D2& " - " &Sheet1!E2 -> Nº de Explorações - Entre Douro e Minho | D99: =+SUMIF(Sheet1!$O$4:$O$35,Sheet1!$D$1&Sheet1!$E$1,Sheet1!D4:D35) -> 111505 | E99: =+SUMIF(Sheet1!$O$4:$O$35,Sheet1!$D$1&Sheet1!$E$1,Sheet1!E4:E35) -> 86967 | F99: =+SUMIF(Sheet1!$O$4:$O$35,Sheet1!$D$1&Sheet1!$E$1,Sheet1!F4:F35) -> 79916 | G99: =+SUMIF(Sheet1!$O$4:$O$35,Sheet1!$D$1&Sheet1!$E$1,Sheet1!G4:G35) -> 73048 | H99: =+SUMIF(Sheet1!$O$4:$O$35,Sheet1!$D$1&Sheet1!$E$1,Sheet1!H4:H35) -> 67546 | I99: =+SUMIF(Sheet1!$O$4:$O$35,Sheet1!$D$1&Sheet1!$E$1,Sheet1!I4:I35) -> 58757 | J99: =+SUMIF(Sheet1!$O$4:$O$35,Sheet1!$D$1&Sheet1!$E$1,Sheet1!J4:J35) -> 52696 | K99: =+SUMIF(Sheet1!$O$4:$O$35,Sheet1!$D$1&Sheet1!$E$1,Sheet1!K4:K35) -> 45848 | L99: =+SUMIF(Sheet1!$O$4:$O$35,Sheet1!$D$1&Sheet1!$E$1,Sheet1!L4:L35) -> 49037 | M99: =+SUMIF(Sheet1!$O$4:$O$35,Sheet1!$D$1&Sheet1!$E$1,Sheet1!M4:M35) -> 41601 | N99: =+SUMIF(Sheet1!$O$4:$O$35,Sheet1!$D$1&Sheet1!$E$1,Sheet1!N4:N35) -> 39651
C100: =+Sheet1!H2& " - " &Sheet1!I2 -> Nº de Explorações - Trás-os-Montes | D100: =+SUMIF(Sheet1!$O$4:$O$35,Sheet1!$H$1&Sheet1!$I$1,Sheet1!D4:D35) -> 80551 | E100: =+SUMIF(Sheet1!$O$4:$O$35,Sheet1!$H$1&Sheet1!$I$1,Sheet1!E4:E35) -> 75678 | F100: =+SUMIF(Sheet1!$O$4:$O$35,Sheet1!$H$1&Sheet1!$I$1,Sheet1!F4:F35) -> 72248 | G100: =+SUMIF(Sheet1!$O$4:$O$35,Sheet1!$H$1&Sheet1!$I$1,Sheet1!G4:G35) -> 70098 | H100: =+SUMIF(Sheet1!$O$4:$O$35,Sheet1!$H$1&Sheet1!$I$1,Sheet1!H4:H35) -> 70006 | I100: =+SUMIF(Sheet1!$O$4:$O$35,Sheet1!$H$1&Sheet1!$I$1,Sheet1!I4:I35) -> 64963 | J100: =+SUMIF(Sheet1!$O$4:$O$35,Sheet1!$H$1&Sheet1!$I$1,Sheet1!J4:J35) -> 61649 | K100: =+SUMIF(Sheet1!$O$4:$O$35,Sheet1!$H$1&Sheet1!$I$1,Sheet1!K4:K35) -> 56339 | L100: =+SUMIF(Sheet1!$O$4:$O$35,Sheet1!$H$1&Sheet1!$I$1,Sheet1!L4:L35) -> 61804 | M100: =+SUMIF(Sheet1!$O$4:$O$35,Sheet1!$H$1&Sheet1!$I$1,Sheet1!M4:M35) -> 57224 | N100: =+SUMIF(Sheet1!$O$4:$O$35,Sheet1!$H$1&Sheet1!$I$1,Sheet1!N4:N35) -> 56228
D104: 1989 | E104: 1993 | F104: 1995 | G104: 1997 | H104: 1999 | I104: 2003 | J104: 2005 | K104: 2007 | L104: 2009 | M104: 2013 | N104: 2016
C105: =+C99 & " (IND100 = 1989)" -> Nº de Explorações - Entre Douro e Minho (IND100 = 1989) | D105: =+D99/$D99*100 -> 100 | E105: 77.99381194 | F105: 71.67032868 | G105: 65.51096363 | H105: 60.57665576 | I105: 52.694498 | J105: 47.25886732 | K105: 41.11743868 | L105: 43.97740012 | M105: 37.30864087 | N105: 35.55984037
C106: =+C100 & " (IND100 = 1989)" -> Nº de Explorações - Trás-os-Montes (IND100 = 1989) | D106: =+D100/$D100*100 -> 100 | E106: 93.95041651 | F106: 89.69224466 | G106: 87.0231282 | H106: 86.90891485 | I106: 80.64828494 | J106: 76.53412124 | K106: 69.94202431 | L106: 76.72654592 | M106: 71.04070713 | N106: 69.80422341
